Workbook

Sheet Table S1
A1: Table S1: Dietary fatty acid intake and blood compositions for all study groups. | AO1: obs.n-6H | AP1: obs.n-3H | AR1: predict | AS1: observ | AT1: predict | AU1: observ
A2: General Information | H2: Dietary Data | W2: Blood Composition Data | AO2: Calculations
A3: Reference Number | B3: Study | C3: Diet Group | D3: Country | E3: N | F3: Gender | G3: Duration (weeks) | H3: Total Energy (as reported) | I3: Total Energy (kcal/d) | J3: Total Fat (as reported) | K3: Total Fat (en%) | L3: Total Other Fat (en%) | M3: Other Diet Info | N3: 18:2n6 (as reported) | O3: 18:2n6 (en%) | P3: 18:3n3 (as reported) | Q3: 18:3n3 (en%) | R3: n-6 HUFA (as reported) | S3: n-6 HUFA (en%) | T3: n-3 HUFA (as reported) | U3: n-3 HUFA (en%) | V3: Complete Diet Data | W3: Blood Fraction | X3: 20:3n-6 (as reported) | Y3: 20:3n-6 (% Tot FA) | Z3: 20:4n-6 (as reported) | AA3: 20:4n-6 (% Tot FA) | AB3: 22:4n-6 (as reported) | AC3: 22:4n-6 (% Tot FA) | AD3: 22:5n-6 (as reported) | AE3: 22:5n-6 (% Tot FA) | AF3: 20:5n-3 (as reported) | AG3: 20:5n-3 (% Tot FA) | AH3: 22:5n-3 (as reported) | AI3: 22:5n-3 (% Tot FA) | AJ3: 22:6n-3 (as reported) | AK3: 22:6n-3 (% Tot FA) | AL3: 20:3n-9 (as reported) | AM3: 20:3n-9 (% Tot FA) | AN3: Complete Blood Composition Data | AO3: Total n-6 HUFA (% Tot FA) | AP3: Total n-3 HUFA (% Tot FA) | AQ3: Total HUFA (% Tot FA) | AR3: Predicted %n-6 in HUFA | AS3: Reported %n-6 in HUFA | AT3: Predicted %n-3 in HUFA | AU3: Reported %n-3 in HUFA
A4: [13] | B4: Lands 1992 | C4: Group A | D4: US | E4: 21 | F4: M/F | G4: Observational | H4: NR | J4: 30 en% | K4: 30 | L4: =K4-(Q4+U4+O4+S4) -> 21.46 | N4: 7.62 ± 3.29 en% LA | O4: 7.62 | P4: 0.74 ± 0.40 en% ALA | Q4: 0.74 | R4: NR1 | S4: 0.07 | T4: NR1 | U4: 0.11 | V4: No | W4: Plasma Phospholipids | X4: 2.23 ± 0.57% Tot FA | Y4: 2.23 | Z4: 7.56 ± 1.62% Tot FA | AA4: 7.56 | AB4: 0.25 ± 0.07% Tot FA | AC4: 0.25 | AD4: NR | AF4: 0.42 ± 0.14% Tot FA | AG4: 0.42 | AH4: 0.56 ± 0.20% Tot FA | AI4: 0.56 | AJ4: 1.84 ± 0.50% Tot FA | AK4: 1.84 | AL4: 0.08 ± 0.08 mg/dL | AM4: 0.08 | AN4: No | AO4: =SUM(Y4,AA4,AC4,AE4) -> 10.04 | AP4: =SUM(AG4,AI4,AK4) -> 2.82 | AQ4: =SUM(AG4,AI4,AK4,Y4,AA4,AC4,AE4,AM4) -> 12.94 | AR4: =100/(1+$B$110*(1+$U4/$B$111)/$S4)+100/(1+$B$105*(1+$Q4/$B$106+$U4/$B$109+$L4/$B$107+$O4/$B$108)/$O4) -> 76.04194378 | AS4: =AO4/AQ4*100 -> 77.58887172 | AT4: =100-AR4 -> 23.95805622 | AU4: =AP4/AQ4*100 -> 21.79289026
A5: [13] | B5: Lands 1992 | C5: Group B | D5: US | E5: 18 | F5: F | G5: Observational | H5: 2064 kcal/d | I5: 2064 | J5: 37 en% | K5: 37 | L5: 30.11 | N5: 5.98 ± 0.30 en% LA | O5: 5.98 | P5: 0.73 ± 0.03 en% ALA | Q5: 0.73 | R5: NR1 | S5: 0.07 | T5: NR1 | U5: 0.11 | V5: No | W5: Plasma Phospholipids | X5: 2.37 ± 0.81% Tot FA | Y5: 2.37 | Z5: 10.30 ± 2.12% Tot FA | AA5: 10.3 | AB5: 0.37 ± 0.13% Tot FA | AC5: 0.37 | AD5: NR | AF5: 0.31 ± 0.17% Tot FA | AG5: 0.31 | AH5: 0.57 ± 0.12% Tot FA | AI5: 0.57 | AJ5: 2.34 ± 0.49% Tot FA | AK5: 2.34 | AL5: 0.00 ± 0.00 mg/dL | AM5: 0 | AN5: No | AO5: 13.04 | AP5: 3.22 | AQ5: 16.26 | AR5: =100/(1+$B$110*(1+$U5/$B$111)/$S5)+100/(1+$B$105*(1+$Q5/$B$106+$U5/$B$109+$L5/$B$107+$O5/$B$108)/$O5) -> 72.77619309 | AS5: 80.19680197 | AT5: 27.22380691 | AU5: 19.80319803
A6: [13] | B6: Lands 1992 | C6: Group B30 | D6: US | E6: 18 | F6: F | G6: 16 | H6: 2000 kcal/d | I6: 2000 | J6: 30 en% | K6: 30 | L6: 21.52 | M6: Subjects consumed B38 diet and B30 iet consecutively | N6: 7.49 ± 0.05 en% LA | O6: 7.49 | P6: 0.81 ± 0.02 en% ALA | Q6: 0.81 | R6: NR1 | S6: 0.07 | T6: NR1 | U6: 0.11 | V6: No | W6: Plasma Phospholipids | X6: 1.98 ± 0.47% Tot FA | Y6: 1.98 | Z6: 8.14 ± 1.19% Tot FA | AA6: 8.14 | AB6: 0.28 ± 0.09% Tot FA | AC6: 0.28 | AD6: NR | AF6: 0.40 ± 0.10% Tot FA | AG6: 0.4 | AH6: 0.64 ± 0.38% Tot FA | AI6: 0.64 | AJ6: 1.84 ± 0.39% Tot FA | AK6: 1.84 | AL6: 0.09 ± 0.02 mg/dL | AM6: 0.09 | AN6: No | AO6: 10.4 | AP6: 2.88 | AQ6: 13.37 | AR6: =100/(1+$B$110*(1+$U6/$B$111)/$S6)+100/(1+$B$105*(1+$Q6/$B$106+$U6/$B$109+$L6/$B$107+$O6/$B$108)/$O6) -> 75.52247532 | AS6: 77.78608826 | AT6: 24.47752468 | AU6: 21.5407629
A7: [13] | B7: Lands 1992 | C7: Group B38 | D7: US | E7: 16 | F7: F | G7: 4 | H7: 2029 kcal/d | I7: 2029 | J7: 38 en% | K7: 38 | L7: 31.16 | M7: Subjects consumed B38 diet and B30 iet consecutively | N7: 5.94 ± 0.32 en% LA | O7: 5.94 | P7: 0.72 ± 0.03 en% ALA | Q7: 0.72 | R7: NR1 | S7: 0.07 | T7: NR1 | U7: 0.11 | V7: No | W7: Plasma Phospholipids | X7: 1.80 ± 0.34% Tot FA | Y7: 1.8 | Z7: 8.10 ± 1.31% Tot FA | AA7: 8.1 | AB7: 0.34 ± 0.22% Tot FA | AC7: 0.34 | AD7: NR | AF7: 0.41 ± 0.14% Tot FA | AG7: 0.41 | AH7: 0.46 ± 0.15% Tot FA | AI7: 0.46 | AJ7: 2.03 ± 0.60% Tot Fa | AK7: 2.03 | AL7: 0.07 ± 0.06 mg/dL | AM7: 0.07 | AN7: No | AO7: 10.24 | AP7: 2.9 | AQ7: 13.21 | AR7: =100/(1+$B$110*(1+$U7/$B$111)/$S7)+100/(1+$B$105*(1+$Q7/$B$106+$U7/$B$109+$L7/$B$107+$O7/$B$108)/$O7) -> 72.68154062 | AS7: 77.51703255 | AT7: 27.31845938 | AU7: 21.95306586
A8: [21] | B8: Chan 1993 | C8: HI-LO | D8: Canada | E8: 8 | F8: M | G8: 6 | H8: NR | J8: 26 en% (added fat, 77% of dietary fat) | K8: 26 | L8: 9.319480519 | N8: 36.0% Tot FA LA | O8: =(36/100)*(26/0.77) -> 12.15584416 | P8: 13.4% Tot FA ALA | Q8: =(13.4/100)*(26/0.77) -> 4.524675325 | R8: 0% Tot FA | S8: 0 | T8: 0% Tot FA | U8: 0 | V8: Yes | W8: Plasma Phospholipids | X8: 0.9 ± 0.2% Tot FA | Y8: 0.9 | Z8: 15.1 ± 2.7% Tot FA | AA8: 15.1 | AB8: 04 ± 0.2% Tot FA | AC8: 0.4 | AD8: NR | AF8: 0.8 ± 0.2% Tot FA | AG8: 0.8 | AH8: 1.3 ± 0.3% Tot FA | AI8: 1.3 | AJ8: 4.0 ± 1.3% Tot FA | AK8: 4 | AL8: NR | AN8: No | AO8: 16.4 | AP8: 6.1 | AQ8: 22.5 | AR8: =100/(1+$B$105*(1+$Q8/$B$106+$U8/$B$109+$L8/$B$107+$O8/$B$108)/$O8) -> 64.17844069 | AS8: 72.88888889 | AT8: 35.82155931 | AU8: 27.11111111
A9: [21] | B9: Chan 1993 | C9: IN-IN | D9: Canada | E9: 8 | F9: M | G9: 6 | H9: NR | J9: 26 en% (added fat, 77% of dietary fat) | K9: 26 | L9: 8.644155844 | N9: 44.9% Tot FA LA | O9: =(44.9/100)*(26/0.77) -> 15.16103896 | P9: 6.5% Tot FA ALA | Q9: =(6.5/100)*(26/0.77) -> 2.194805195 | R9: 0% Tot FA | S9: 0 | T9: 0% Tot FA | U9: 0 | V9: Yes | W9: Plasma Phospholipids | X9: 0.9 ± 0.2% Tot FA | Y9: 0.9 | Z9: 16.7 ± 2.4% Tot FA | AA9: 16.7 | AB9: 0.4 ± 0.2% Tot FA | AC9: 0.4 | AD9: NR | AF9: 0.3 ± 0.2% Tot FA | AG9: 0.3 | AH9: 1.0 ± 0.3% Tot FA | AI9: 1 | AJ9: 4.4 ± 1.3% Tot FA | AK9: 4.4 | AL9: NR | AN9: No | AO9: 18 | AP9: 5.7 | AQ9: 23.7 | AR9: =100/(1+$B$105*(1+$Q9/$B$106+$U9/$B$109+$L9/$B$107+$O9/$B$108)/$O9) -> 72.72896826 | AS9: 75.94936709 | AT9: 27.27103174 | AU9: 24.05063291
A10: [21] | B10: Chan 1993 | C10: IN-LO | D10: Canada | E10: 8 | F10: M | G10: 6 | H10: NR | J10: 26 en% (added fat, 77% of dietary fat) | K10: 26 | L10: 17.18701299 | N10: 19.5% Tot FA LA | O10: =(19.5/100)*(26/0.77) -> 6.584415584 | P10: 6.6% Tot FA ALA | Q10: =(6.6/100)*(26/0.77) -> 2.228571429 | R10: 0% Tot FA | S10: 0 | T10: 0% Tot FA | U10: 0 | V10: Yes | W10: Plasma Phospholipids | X10: 1.2 ± 0.2% Tot FA | Y10: 1.2 | Z10: 16.2 ± 2.4% Tot FA | AA10: 16.2 | AB10: 0.3 ± 0.2% Tot FA | AC10: 0.3 | AD10: NR | AF10: 0.9 ± 0.2% Tot FA | AG10: 0.9 | AH10: 1.1 ± 0.3% Tot FA | AI10: 1.1 | AJ10: 5.0 ± 1.3% Tot FA | AK10: 5 | AL10: NR | AN10: No | AO10: 17.7 | AP10: 7 | AQ10: 24.7 | AR10: =100/(1+$B$105*(1+$Q10/$B$106+$U10/$B$109+$L10/$B$107+$O10/$B$108)/$O10) -> 64.48867751 | AS10: 71.65991903 | AT10: 35.51132249 | AU10: 28.34008097
A11: [21] | B11: Chan 1993 | C11: LO-HI | D11: Canada | E11: 8 | F11: M | G11: 6 | H11: NR | J11: 26 en% (added fat, 77% of dietary fat) | K11: 26 | L11: 18.33506494 | N11: 21.9% Tot FA LA | O11: =(21.9/100)*(26/0.77) -> 7.394805195 | P11: 0.8% Tot FA ALA | Q11: =(0.8/100)*(26/0.77) -> 0.2701298701 | R11: 0% Tot FA | S11: 0 | T11: 0% Tot FA | U11: 0 | V11: Yes | W11: Plasma Phospholipids | X11: 1.2 ± 0.2% Tot FA | Y11: 1.2 | Z11: 17.3 ± 2.7% Tot FA | AA11: 17.3 | AB11: 0.5 ± 0.2% Tot FA | AC11: 0.5 | AD11: NR | AF11: 0.4 ± 0.2% Tot FA | AG11: 0.4 | AH11: 0.9 ± 0.3% Tot FA | AI11: 0.9 | AJ11: 4.5 ± 1.3% Tot FA | AK11: 4.5 | AL11: NR | AN11: No | AO11: 19 | AP11: 5.8 | AQ11: 24.8 | AR11: =100/(1+$B$105*(1+$Q11/$B$106+$U11/$B$109+$L11/$B$107+$O11/$B$108)/$O11) -> 76.40244132 | AS11: 76.61290323 | AT11: 23.59755868 | AU11: 23.38709677
A12: [22] | B12: Finnegan 2003 | C12: 0.8 g EPA & DHA | D12: US | E12: 30 | F12: M/F | G12: 26 | H12: 11.0 ± 0.4 MJ/d | I12: =11*$B$101 -> 2629 | J12: 36.3 ± 1.0 en% | K12: 36.3 | L12: 28.37835679 | N12: 20.8 ± 0.8 g/d LA | O12: =100*20.8*$B$102/I12 -> 7.120578167 | P12: 1.3 ± 0.5 g/d ALA | Q12: =100*$B$102*1.3/I12 -> 0.4450361354 | R12: 0.19 ± 0.02 g/d AA | S12: =100*0.19*$B$102/I12 -> 0.06504374287 | T12: 0.30 ± 0.02 g/d EPA, 0.08 ± 0.01 g/d DPA, 0.47 ± 0.02 g/d DHA | U12: =100*(0.3+0.08+0.47)*$B$102/I12 -> 0.2909851655 | V12: Yes | W12: Plasma Phospholipids | X12: NR | Z12: 9.51 ± 0.41% Tot FA | AA12: 9.51 | AB12: NR | AD12: NR | AF12: 1.78 ± 0.30% Tot FA | AG12: 1.78 | AH12: 2.00 ± 0.14% Tot FA | AI12: 2 | AJ12: 5.04 ± 0.20% Tot FA | AK12: 5.04 | AL12: NR | AN12: No | AO12: 9.51 | AP12: 8.82 | AQ12: 18.33 | AR12: =100/(1+$B$110*(1+$U12/$B$111)/$S12)+100/(1+$B$105*(1+$Q12/$B$106+$U12/$B$109+$L12/$B$107+$O12/$B$108)/$O12) -> 66.51369146 | AS12: 51.88216039 | AT12: 33.48630854 | AU12: 48.11783961
A13: [22] | B13: Finnegan 2003 | C13: 1.7 g EPA & DHA | D13: US | E13: 28 | F13: M/F | G13: 26 | H13: 10.8 ± 0.5 MJ/d | I13: =10.8*$B$101 -> 2581.2 | J13: 35.8 ± 1.0 en% | K13: 35.8 | L13: 27.2609484 | N13: 21.1 ± 1.0 g/d LA | O13: =100*21.1*$B$102/I13 -> 7.357043236 | P13: 1.4 ± 0.1 g/d ALA | Q13: =100*$B$102*1.4/I13 -> 0.4881450488 | R13: 0.20 ± 0.02 g/d AA | S13: =100*0.2*$B$102/I13 -> 0.06973500697 | T13: 0.66 ± 0.02 g/d EPA, 0.11 ± 0.01 g/d DPA, 1.02 ± 0.03 g/d DHA | U13: =100*(0.66+0.11+1.02)*$B$102/I13 -> 0.6241283124 | V13: Yes | W13: Plasma Phospholipids | X13: NR | Z13: 8.40 ± 0.30% Tot FA | AA13: 8.4 | AB13: NR | AD13: NR | AF13: 2.25 ± 0.30% Tot FA | AG13: 2.25 | AH13: 2.07 ± 0.10% Tot FA | AI13: 2.07 | AJ13: 6.61 ± 0.27% Tot FA | AK13: 6.61 | AL13: NR | AN13: No | AO13: 8.4 | AP13: 10.93 | AQ13: 19.33 | AR13: 55.42776338 | AS13: 43.45576824 | AT13: 44.57223662 | AU13: 56.54423176
A14: [22] | B14: Finnegan 2003 | C14: 4.5 g ALA | D14: US | E14: 29 | F14: M/F | G14: 26 | H14: 9.8 ± 0.5 MJ/d | I14: =9.8*$B$101 -> 2342.2 | J14: 36.0 ± 0.9 en% | K14: 36 | L14: 27.82307233 | N14: 16.2 ± 0.7 g/d LA | O14: =100*16.2*$B$102/I14 -> 6.224916745 | P14: 4.5 ± 0.6 g/d ALA | Q14: =100*$B$102*4.5/I14 -> 1.72914354 | R14: 0.14 ± 0.01 g/d AA | S14: =100*0.14*$B$102/I14 -> 0.05379557681 | T14: 0.16 ± 0.03 g/d EPA, 0.07 ± 0.01 g/d DPA, 0.21 ± 0.02 g/d DHA | U14: =100*(0.16+0.07+0.21)*$B$102/I14 -> 0.1690718128 | V14: Yes | W14: Plasma Phospholipids | X14: NR | Z14: 9.16 ± 0.37% Tot FA | AA14: 9.16 | AB14: NR | AD14: NR | AF14: 2.00 ± 0.23% Tot FA | AG14: 2 | AH14: 2.14 ± 0.10% Tot FA | AI14: 2.14 | AJ14: 4.16 ± 0.24% Tot FA | AK14: 4.16 | AL14: NR | AN14: No | AO14: 9.16 | AP14: 8.3 | AQ14: 17.46 | AR14: 63.63920707 | AS14: 52.46277205 | AT14: 36.36079293 | AU14: 47.53722795
A15: [22] | B15: Finnegan 2003 | C15: 9.5 g ALA | D15: US | E15: 29 | F15: M/F | G15: 26 | H15: 10.4 ± 0.5 MJ/d | I15: =10.4*$B$101 -> 2485.6 | J15: 37.8 ± 0.9 en% | K15: 37.8 | L15: 29.42858062 | N15: 13.1 ± 0.6 g/d LA | O15: =100*13.1*$B$102/I15 -> 4.743321532 | P15: 9.5 ± 0.1 g/d ALA | Q15: =100*$B$102*9.5/I15 -> 3.439813325 | R15: 0.18 ± 0.01 g/d AA | S15: =100*0.18*$B$102/I15 -> 0.06517541036 | T15: 0.15 ± 0.03 g/d EPA, 0.09 ± 0.01 g/d DPA, 0.10 ±0.02 g/d DHA | U15: =100*(0.15+0.09+0.1)*$B$102/I15 -> 0.1231091085 | V15: Yes | W15: Plasma Phospholipids | X15: NR | Z15: 9.30 ± 0.50% Tot FA | AA15: 9.3 | AB15: NR | AD15: NR | AF15: 2.14 ± 0.30% Tot FA | AG15: 2.14 | AH15: 2.45 ± 0.15% Tot FA | AI15: 2.45 | AJ15: 3.667 ± 0.26% Tot FA | AK15: 3.667 | AL15: NR | AN15: No | AO15: 9.3 | AP15: 8.257 | AQ15: 17.557 | AR15: 55.35337046 | AS15: 52.97032523 | AT15: 44.64662954 | AU15: 47.02967477
A16: [22] | B16: Finnegan 2003 | C16: Control | D16: US | E16: 29 | F16: M/F | G16: 26 | H16: 12.1 ± 0.5 MJ/d | I16: =12.1*$B$101 -> 2891.9 | J16: 36.2 ± 0.8 en% | K16: 36.2 | L16: 28.33873232 | N16: 22.9 ± 0.9 g/d LA | O16: =100*22.9*$B$102/I16 -> 7.126802448 | P16: 1.5 ± 0.1 g/d ALA | Q16: =100*$B$102*1.5/I16 -> 0.4668211211 | R16: 0.23 ± 0.02 g/d AA | S16: =100*0.23*$B$102/I16 -> 0.07157923856 | T16: 0.22 ± 0.02 g/d EPA, 0.11 ± 0.01 g/d DPA, 0.30 ± 0.03 g/d DHA | U16: =100*(0.22+0.11+0.3)*$B$102/I16 -> 0.1960648708 | V16: Yes | W16: Plasma Phospholipids | X16: NR | Z16: 9.54 ± 0.53% Tot FA | AA16: 9.54 | AB16: NR | AD16: NR | AF16: 1.27 ± 0.23% Tot FA | AG16: 1.27 | AH16: 2.25 ± 0.13% Tot FA | AI16: 2.25 | AJ16: 4.40 ± 0.24% Tot FA | AK16: 4.4 | AL16: NR | AN16: No | AO16: 9.54 | AP16: 7.92 | AQ16: 17.46 | AR16: 71.73185714 | AS16: 54.63917526 | AT16: 28.26814286 | AU16: 45.36082474
A17: [23] | B17: Hirota 2010 | C17: Placebo | D17: Japan | E17: 23 | F17: F | G17: 3 | H17: NR | J17: 34.6 ± 3.3 en% (57.0 ± 12.9 g) | K17: 34.6 | L17: 27.41534035 | M17: Subjects switched diets after 3 wk wash-out period | N17: 9802 ± 2231 mg/d LA | O17: =(9802/1000)*34.6/57 -> 5.949985965 | P17: 1395 ± 329 mg/d ALA | Q17: =(1395/1000)*34.6/57 -> 0.8467894737 | R17: 28 ± 10 mg/d 20:3n6, 137 ± 43 mg/d AA, 9 ± 3 mg/d 22:4n6 | S17: =(28+137+9)/1000*34.6/57 -> 0.1056210526 | T17: 161 ± 84 mg/d EPA, 304 ± 126 mg/d DHA | U17: =((161+304)/1000)*34.6/57 -> 0.2822631579 | V17: Yes | W17: Plasma Phospholipids | X17: 1.6% Tot FA | Y17: 1.6 | Z17: 7.2% Tot FA | AA17: 7.2 | AB17: NR | AD17: NR | AF17: 1.7% Tot FA | AG17: 1.7 | AH17: NR | AJ17: 5.1% Tot FA | AK17: 5.1 | AL17: NR | AN17: No | AO17: 8.8 | AP17: 6.8 | AQ17: 15.6 | AR17: 66.71824162 | AS17: 56.41025641 | AT17: 33.28175838 | AU17: 43.58974359
A18: [23] | B18: Hirota 2010 | C18: ARA | D18: Japan | E18: 23 | F18: F | G18: 3 | H18: NR | J18: 35.0 ± 4.7 en% (56.0 ± 13.8 g) | K18: 35 | L18: 27.826875 | M18: Subjects switched diets after 3 wk wash-out period | N18: 9388 ± 2505 mg/d LA | O18: =(9388/1000)*35/56 -> 5.8675 | P18: 1341 ± 354 mg/d ALA | Q18: =(1341/1000)*35/56 -> 0.838125 | R18: 34 ± 8 mg/d 20:3n6, 219 ± 35 mg/d AA, 10 ± 3 mg/d 22:4n6 | S18: =(34+219+10)/1000*35/56 -> 0.164375 | T18: 165 ± 101 mg/d EPA, 320 ± 169 mg/d DHA | U18: =((165+320)/1000)*35/56 -> 0.303125 | V18: Yes | W18: Plasma Phospholipids | X18: 1.5% Tot FA | Y18: 1.5 | Z18: 8.1% Tot FA | AA18: 8.1 | AB18: NR | AD18: NR | AF18: 1.8% Tot FA | AG18: 1.8 | AH18: NR | AJ18: 5.1% Tot FA | AK18: 5.1 | AL18: NR | AN18: No | AO18: 9.6 | AP18: 6.9 | AQ18: 16.5 | AR18: 71.03981701 | AS18: 58.18181818 | AT18: 28.96018299 | AU18: 41.81818182
A19: [24] | B19: King 2006 | C19: Baseline Diet- Low Fat Group | D19: US | E19: 31 | F19: F | G19: 6 | H19: 7.23 ± 1.79 MJ/d | I19: =7.23*$B$101 -> 1727.97 | J19: 28.4 ± 7.6 en% | K19: 28.4 | L19: 22.4363548 | N19: 10.0 ± 4.3 g/d LA | O19: =100*10*$B$102/I19 -> 5.208423757 | P19: 1.1 ± 0.5 g/d ALA | Q19: =100*$B$102*1.1/I19 -> 0.5729266133 | R19: 0.12 ± 0.05 g/d AA | S19: =100*$B$102*0.12/I19 -> 0.06250108509 | T19: 0.23 ± 0.25 g/d EPA & DHA | U19: =100*(0.23)*$B$102/I19 -> 0.1197937464 | V19: Yes | W19: Plasma Phospholipids | X19: 3.45 ± 0.86 mg/100 g | Y19: 3.45 | Z19: 11.62 ± 1.54 mg/100 g | AA19: 11.62 | AB19: 0.44 ± 0.08 mg/100 g | AC19: 0.44 | AD19: NR | AF19: 0.94 ± 0.35 mg/100 g | AG19: 0.94 | AH19: 0.97 ± 0.21 mg/100 g | AI19: 0.97 | AJ19: 3.80 ± 0.85 mg/100 g | AK19: 3.8 | AL19: NR | AN19: No | AO19: 15.51 | AP19: 5.71 | AQ19: 21.22 | AR19: 70.85049528 | AS19: 73.09142319 | AT19: 29.14950472 | AU19: 26.90857681
A20: [24] | B20: King 2006 | C20: Baseline Diet- Moderate Fat Group | D20: US | E20: 30 | F20: F | G20: 6 | H20: 7.09 ± 1.23 MJ/d | I20: =7.09*$B$101 -> 1694.51 | J20: 29.7 ± 6.8 en% | K20: 29.7 | L20: 23.42739022 | N20: 10.3 ± 3.9 g/d LA | O20: =100*10.3*$B$102/I20 -> 5.470608022 | P20: 1.2 ± 0.5 g/d ALA | Q20: =100*$B$102*1.2/I20 -> 0.637352391 | R20: 0.12 ± 0.07 g/d AA | S20: =100*$B$102*0.12/I20 -> 0.0637352391 | T20: 0.19 ± 0.18 g/d EPA & DHA | U20: =100*(0.19)*$B$102/I20 -> 0.1009141286 | V20: Yes | W20: Plasma Phospholipids | X20: 3.45 ± 0.89 mg/100 g | Y20: 3.45 | Z20: 11.19 ± 1.65 mg/100 g | AA20: 11.19 | AB20: 0.45 ± 0.14 mg/100 g | AC20: 0.45 | AD20: NR | AF20: 0.99 ± 0.62 mg/100 g | AG20: 0.99 | AH20: 0.98 ± 0.16 mg/100 g | AI20: 0.98 | AJ20: 4.14 ± 0.91 mg/100 g | AK20: 4.14 | AL20: NR | AN20: No | AO20: 15.09 | AP20: 6.11 | AQ20: 21.2 | AR20: 72.48274154 | AS20: 71.17924528 | AT20: 27.51725846 | AU20: 28.82075472
A21: [24] | B21: King 2006 | C21: Low Fat | D21: US | E21: 31 | F21: F | G21: 6 | H21: 8.5 MJ/d | I21: =8.5*$B$101 -> 2031.5 | J21: 17.1 en% | K21: 17.1 | L21: 13.46721634 | N21: 7.1 g/d LA | O21: =100*7.1*$B$102/I21 -> 3.14545902 | P21: 0.7 g/d ALA | Q21: =100*$B$102*0.7/I21 -> 0.3101156781 | R21: 0.1 g/d AA | S21: =100*$B$102*0.1/I21 -> 0.04430223972 | T21: 0.3 g/d EPA & DHA | U21: =100*(0.3)*$B$102/I21 -> 0.1329067192 | V21: Yes | W21: Plasma Phospholipids | X21: 3.81 mg/100 g | Y21: 3.81 | Z21: 12.10 mg/100 g | AA21: 12.1 | AB21: 0.52 mg/100 g | AC21: 0.52 | AD21: NR | AF21: 0.99 mg/100 g | AG21: 0.99 | AH21: 1.01 mg/100 g | AI21: 1.01 | AJ21: 5.15 mg/100 g | AK21: 5.15 | AL21: NR | AN21: No | AO21: 16.43 | AP21: 7.15 | AQ21: 23.58 | AR21: 62.70068071 | AS21: 69.67769296 | AT21: 37.29931929 | AU21: 30.32230704
A22: [24] | B22: King 2006 | C22: Moderate Fat | D22: US | E22: 30 | F22: F | G22: 6 | H22: 8.0 MJ/d | I22: =8*$B$101 -> 1912 | J22: 34.0 en% | K22: 34 | L22: 27.59832636 | N22: 11.6 g/d LA | O22: =100*11.6*$B$102/I22 -> 5.460251046 | P22: 1.5 g/d ALA | Q22: =100*$B$102*1.5/I22 -> 0.7060669456 | R22: 0.2 g/d AA | S22: =100*$B$102*0.1/I22 -> 0.04707112971 | T22: 0.4 g/d EPA & DHA | U22: =100*(0.4)*$B$102/I22 -> 0.1882845188 | V22: Yes | W22: Plasma Phospholipids | X22: 3.12 mg/100 g | Y22: 3.12 | Z22: 10.83 mg/100 g | AA22: 10.83 | AB22: 0.38 mg/100 g | AC22: 0.38 | AD22: NR | AF22: 1.11 mg/100 g | AG22: 1.11 | AH22: 0.84 mg/100 g | AI22: 0.84 | AJ22: 5.63 mg/100 g | AK22: 5.63 | AL22: NR | AN22: No | AO22: 14.33 | AP22: 7.58 | AQ22: 21.91 | AR22: 64.37759598 | AS22: 65.40392515 | AT22: 35.62240402 | AU22: 34.59607485
A23: [25] | B23: Legrand 2010 | C23: Control | D23: US | E23: 80 | F23: M/F | G23: 13 | H23: NR | J23: 33 en% (68.5 g/d) | K23: 33 | L23: 24.80058394 | N23: 16.0 g/d LA | O23: =(16/68.5)*33 -> 7.708029197 | P23: 0.7 g/d ALA | Q23: =(0.7/68.5)*33 -> 0.3372262774 | R23: 0.21 g/d AA | S23: =(0.21/68.5)*33 -> 0.1011678832 | T23: 0.01 g/d EPA, 0.03 g/d DPA, 0.07 g/d DHA | U23: =((0.01+0.03+0.07)/68.5)*33 -> 0.05299270073 | V23: Yes | W23: RBC Total Lipids | X23: NR | Z23: 9.5 ± 2.8% Tot FA | AA23: 9.5 | AB23: NR | AD23: NR | AF23: 0.40 ± 0.2% Tot FA | AG23: 0.4 | AH23: NR | AJ23: 2.3 ± 0.8% Tot FA | AK23: 2.3 | AL23: NR | AN23: No | AO23: 9.5 | AP23: 2.7 | AQ23: 12.2 | AR23: 84.82067721 | AS23: 77.86885246 | AT23: 15.17932279 | AU23: 22.13114754
A24: [25] | B24: Legrand 2010 | C24: Experimental | D24: US | E24: 80 | F24: M/F | G24: 13 | H24: NR | J24: 33 en% (69.2 g/d) | K24: 33 | L24: 29.02283237 | M24: Food products from linseed-fed animals | N24: 5.5 g/d LA | O24: =(5.5/69.2)*33 -> 2.62283237 | P24: 2.4 g/d ALA | Q24: =(2.4/69.2)*33 -> 1.144508671 | R24: 0.17 g/d AA | S24: =(0.17/69.2)*33 -> 0.08106936416 | T24: 0.07 g/d EPA, 0.07 g/d DPA, 0.13 g/d DHA | U24: =((0.07+0.07+0.13)/69.2)*33 -> 0.1287572254 | V24: Yes | W24: RBC Total Lipids | X24: NR | Z24: 9.4± 2.4% Tot FA | AA24: 9.4 | AB24: NR | AD24: NR | AF24: 0.77 ± 0.3% Tot FA | AG24: 0.77 | AH24: NR | AJ24: 2.7 ± 0.9% Tot FA | AK24: 2.7 | AL24: NR | AN24: No | AO24: 9.4 | AP24: 3.47 | AQ24: 12.87 | AR24: 56.59043739 | AS24: 73.03807304 | AT24: 43.40956261 | AU24: 26.96192696
A25: [26] | B25: Olza 2010 | C25: Experimental | D25: Spain | E25: 17 | F25: M/F | G25: 26 | H25: 1266 kcal/d | I25: 1266 | J25: 49.4 g/d | K25: =100*$B$102*49.4/I25 -> 35.11848341 | L25: 26.76379621 | M25: Enteral nutrition | N25: 23.17 ± 0.09% Tot FA LA | O25: =((49.4*$B$102)/I25)*23.17 -> 8.136952607 | P25: 0.34 ± 0.02% Tot FA ALA | Q25: =((49.4*$B$102)/I25)*0.34 -> 0.1194028436 | R25: 0% Tot FA | S25: 0 | T25: 0.19 ± 0.01% Tot FA EPA, 0.09 ± 0.01% Tot FA DHA | U25: =((49.4*$B$102)/I25)*(0.19+0.09) -> 0.09833175355 | V25: Yes | W25: Plasma Phospholipids | X25: NR | Z25: 12.3 ± 0.5% Tot FA | AA25: 10.2 | AB25: NR | AD25: NR | AF25: 0.81 ± 0.06% Tot FA | AG25: 0.81 | AH25: 0.68 ± 0.05% Tot FA | AI25: 0.68 | AJ25: 3.96 ± 0.24% Tot FA | AK25: 3.96 | AL25: NR | AN25: No | AO25: 10.2 | AP25: 5.45 | AQ25: 15.65 | AR25: =100/(1+$B$105*(1+$Q25/$B$106+$U25/$B$109+$L25/$B$107+$O25/$B$108)/$O25) -> 71.19078031 | AS25: 65.17571885 | AT25: 28.80921969 | AU25: 34.82428115
A26: [26] | B26: Olza 2010 | C26: Reference | D26: Spain | E26: 20 | F26: M/F | G26: 26 | H26: 1403 kcal/d | I26: 1403 | J26: 47.3 g/d | K26: =100*$B$102*47.3/I26 -> 30.34212402 | L26: 23.66685674 | M26: Enteral nutrition | N26: 21.59 ± 0.14% Tot FA LA | O26: =((47.3*$B$102)/I26)*21.59 -> 6.550864576 | P26: 0.41 ± 0.05% Tot FA ALA | Q26: =((47.3*$B$102)/I26)*0.41 -> 0.1244027085 | R26: 0% Tot FA | S26: 0 | T26: 0% Tot FA | U26: 0 | V26: Yes | W26: Plasma Phospholipids | X26: NR | Z26: 10.2 ± 0.6% Tot FA | AA26: 12.3 | AB26: NR | AD26: NR | AF26: 0.84 ± 0.07% Tot FA | AG26: 0.84 | AH26: 0.71 ± 0.05% Tot FA | AI26: 0.71 | AJ26: 3.15 ± 0.20% Tot FA | AK26: 3.15 | AL26: NR | AN26: No | AO26: 12.3 | AP26: 4.7 | AQ26: 17 | AR26: =100/(1+$B$105*(1+$Q26/$B$106+$U26/$B$109+$L26/$B$107+$O26/$B$108)/$O26) -> 76.58807734 | AS26: 72.35294118 | AT26: 23.41192266 | AU26: 27.64705882
A27: [27] | B27: Södergren 2001 | C27: Control | D27: Sweden | E27: 19 | F27: M/F | G27: 4 | H27: NR | J27: 37 en% | K27: 37 | L27: 31.4537 | M27: Subjects consumed both diets with 4 wk wash-out period | N27: 13.2 ± 0.71% Tot FA LA | O27: =(13.2/100)*37 -> 4.884 | P27: 0.90 ± 0.11% Tot FA ALA | Q27: =(0.9/100)*37 -> 0.333 | R27: 0.14 ± 0.06% Tot FA AA | S27: =(0.14/100)*37 -> 0.0518 | T27: 0.21 ± 0.10% Tot FA EPA, 0.54 ± 0.20% Tot FA DHA | U27: =((0.21+0.54)/100)*37 -> 0.2775 | V27: Yes | W27: Serum Phospholipids | X27: 3.15 ± 0.51% Tot FA | Y27: 3.15 | Z27: 8.14 ± 1.25% Tot FA | AA27: 8.14 | AB27: NR | AD27: NR | AF27: 1.37 ± 0.37% Tot FA | AG27: 1.37 | AH27: 1.10 ± 0.18% Tot FA | AI27: 1.1 | AJ27: 4.48 ± 0.78% Tot FA | AK27: 4.48 | AL27: NR | AN27: No | AO27: 11.29 | AP27: 6.95 | AQ27: 18.24 | AR27: =100/(1+$B$110*(1+$U27/$B$111)/$S27)+100/(1+$B$105*(1+$Q27/$B$106+$U27/$B$109+$L27/$B$107+$O27/$B$108)/$O27) -> 59.72991661 | AS27: 61.89692982 | AT27: 40.27008339 | AU27: 38.10307018
A28: [27] | B28: Södergren 2001 | C28: Rapeseed Oil | D28: Sweden | E28: 19 | F28: M/F | G28: 4 | H28: NR | J28: 37 en% | K28: 37 | L28: 26.4883 | M28: Subjects consumed both diets with 4 wk wash-out period | N28: 19.8 ± 0.57% Tot FA LA | O28: =(19.8/100)*37 -> 7.326 | P28: 7.77 ± 0.49% Tot FA ALA | Q28: =(7.77/100)*37 -> 2.8749 | R28: 0.12 ± 0.06% Tot FA AA | S28: =(0.12/100)*37 -> 0.0444 | T28: 0.23 ± 0.07% Tot FA EPA, 0.49 ± 0.23% Tot FA DHA | U28: =((0.23+0.49)/100)*37 -> 0.2664 | V28: Yes | W28: Serum Phospholipids | X28: 2.82 ± 0.60% Tot FA | Y28: 2.82 | Z28: 8.12 ± 1.04% Tot FA | AA28: 8.12 | AB28: NR | AD28: NR | AF28: 1.79 ± 0.45% Tot FA | AG28: 1.79 | AH28: 1.13 ± 0.16% Tot FA | AI28: 1.13 | AJ28: 4.75 ± 0.75% Tot FA | AK28: 4.75 | AL28: NR | AN28: No | AO28: 10.94 | AP28: 7.67 | AQ28: 18.61 | AR28: 57.52167694 | AS28: 58.78559914 | AT28: 42.47832306 | AU28: 41.21440086
A29: [28] | B29: Thies 2001 | C29: AA | D29: UK | E29: 8 | F29: M/F | G29: 12 | H29: 11.6 ± 0.6 MJ/d | I29: =11.6*$B$101 -> 2772.4 | J29: 32.8 ± 0.8 en% | K29: 32.8 | L29: 28.80706969 | N29: 10.34 ± 1.25 g/d LA | O29: =100*10.34*$B$102/I29 -> 3.356658491 | P29: 0.84 ± 0.07 g/d ALA | Q29: =100*$B$102*0.84/I29 -> 0.2726879238 | R29: 0.82 ± 0.02 g/d AA | S29: =100*0.82*$B$102/I29 -> 0.2661953542 | T29: 0.11 ± 0.02 g/d EPA, 0.19 ± 0.03 g/d DHA | U29: =100*$B$102*(0.11+0.19)/I29 -> 0.09738854422 | V29: Yes | W29: Plasma Phospholipids | X29: 2.30 ± 0.24% Tot FA | Y29: 2.3 | Z29: 17.20 ± 0.49% Tot FA | AA29: 17.2 | AB29: NR | AD29: NR | AF29: 0.86 ± 0.17% Tot FA | AG29: 0.86 | AH29: NR | AJ29: 3.71 ± 0.38% Tot FA | AK29: 3.71 | AL29: NR | AN29: No | AO29: 19.5 | AP29: 4.57 | AQ29: 24.07 | AR29: 87.11225949 | AS29: 81.01371001 | AT29: 12.88774051 | AU29: 18.98628999
A30: [28] | B30: Thies 2001 | C30: ALA | D30: UK | E30: 8 | F30: M/F | G30: 12 | H30: 11.6 ± 0.6 MJ/d | I30: 2772.4 | J30: 32.8 ± 0.8 en% | K30: 32.8 | L30: 28.42725436 | N30: 10.22 ± 1.68 g/d LA | O30: =100*10.22*$B$102/I30 -> 3.317703073 | P30: 2.94 ± 0.17 g/d ALA | Q30: =100*$B$102*2.94/I30 -> 0.9544077334 | R30: 0.17 ± 0.02 g/d AA | S30: =100*0.17*$B$102/I30 -> 0.05518684173 | T30: 0.05 ± 0.01 g/d EPA, 0.09 ± 0.02 g/d DHA | U30: =100*$B$102*(0.05+0.09)/I30 -> 0.0454479873 | V30: Yes | W30: Plasma Phospholipids | X30: 2.88 ± 0.21% Tot FA | Y30: 2.88 | Z30: 9.26 ± 0.45% Tot FA | AA30: 9.26 | AB30: NR | AD30: NR | AF30: 1.24 ± 0.16% Tot FA | AG30: 1.24 | AH30: NR | AJ30: 3.28 ± 0.30% Tot FA | AK30: 3.28 | AL30: NR | AN30: No | AO30: 12.14 | AP30: 4.52 | AQ30: 16.66 | AR30: 66.36868725 | AS30: 72.86914766 | AT30: 33.63131275 | AU30: 27.13085234
A31: [28] | B31: Thies 2001 | C31: DHA | D31: UK | E31: 8 | F31: M/F | G31: 12 | H31: 11.6 ± 0.6 MJ/d | I31: 2772.4 | J31: 32.8 ± 0.8 en% | K31: 32.8 | L31: 28.63501659 | N31: 10.79 ± 2.10 g/d LA | O31: =100*10.79*$B$102/I31 -> 3.502741307 | P31: 0.94 ± 0.08 g/d ALA | Q31: =100*$B$102*0.94/I31 -> 0.3051507719 | R31: 0.15 ± 0.02 g/d AA | S31: =100*0.15*$B$102/I31 -> 0.04869427211 | T31: 0.10 ± 0.02 g/d EPA, 0.85 ± 0.02 g/d DHA | U31: =100*$B$102*(0.1+0.85)/I31 -> 0.3083970567 | V31: Yes | W31: Plasma Phospholipids | X31: 2.23 ± 0.19% Tot FA | Y31: 2.23 | Z31: 7.40 ± 0.34% Tot FA | AA31: 7.4 | AB31: NR | AD31: NR | AF31: 0.91 ± 0.15% Tot FA | AG31: 0.91 | AH31: NR | AJ31: 6.66 ± 0.37% Tot FA | AK31: 6.66 | AL31: NR | AN31: No | AO31: 9.63 | AP31: 7.57 | AQ31: 17.2 | AR31: 51.75325115 | AS31: 55.98837209 | AT31: 48.24674885 | AU31: 44.01162791
A32: [28] | B32: Thies 2001 | C32: FO | D32: UK | E32: 7 | F32: M/F | G32: 12 | H32: 11.6 ± 0.6 MJ/d | I32: 2772.4 | J32: 32.8 ± 0.8 en% | K32: 32.8 | L32: 28.87848795 | N32: 9.70 ± 1.69 g/d LA | O32: =100*9.7*$B$102/I32 -> 3.148896263 | P32: 0.99 ± 0.19 g/d ALA | Q32: =100*$B$102*0.99/I32 -> 0.3213821959 | R32: 0.19 ± 0.02 g/d AA | S32: =100*0.19*$B$102/I32 -> 0.06167941134 | T32: 0.80 ± 0.02 g/d EPA, 0.40 ± 0.03 g/d DHA | U32: =100*$B$102*(0.8+0.4)/I32 -> 0.3895541769 | V32: Yes | W32: Plasma Phospholipids | X32: 2.59 ± 0.29% Tot FA | Y32: 2.59 | Z32: 9.27 ± 0.60% Tot FA | AA32: 9.27 | AB32: NR | AD32: NR | AF32: 3.53 ± 0.47% Tot FA | AG32: 3.53 | AH32: NR | AJ32: 4.40 ± 0.20% Tot FA | AK32: 4.4 | AL32: NR | AN32: No | AO32: 11.86 | AP32: 7.93 | AQ32: 19.79 | AR32: 46.93080754 | AS32: 59.9292572 | AT32: 53.06919246 | AU32: 40.0707428
A33: [28] | B33: Thies 2001 | C33: GLA | D33: UK | E33: 7 | F33: M/F | G33: 12 | H33: 11.6 ± 0.6 MJ/d | I33: 2772.4 | J33: 32.8 ± 0.8 en% | K33: 32.8 | L33: 28.35258981 | N33: 12.36 ± 1.79 g/d LA | O33: =100*12.36*$B$102/I33 -> 4.012408022 | P33: 0.98 ± 0.14 g/d ALA | Q33: =100*$B$102*0.98/I33 -> 0.3181359111 | R33: 0.13 ± 0.02 g/d AA | S33: =100*0.13*$B$102/I33 -> 0.0422017025 | T33: 0.09 ± 0.03 g/d EPA, 0.14 ± 0.04 g/d DHA | U33: =100*$B$102*(0.09+0.14)/I33 -> 0.07466455057 | V33: Yes | W33: Plasma Phospholipids | X33: 4.63 ± 0.52% Tot FA | Y33: 4.63 | Z33: 10.69 ± 2.14% Tot FA | AA33: 10.69 | AB33: NR | AD33: NR | AF33: 0.80 ± 0.11% Tot FA | AG33: 0.8 | AH33: NR | AJ33: 3.16 ± 0.35% Tot FA | AK33: 3.16 | AL33: NR | AN33: No | AO33: 15.32 | AP33: 3.96 | AQ33: 19.28 | AR33: 69.970208 | AS33: 79.46058091 | AT33: 30.029792 | AU33: 20.53941909
A34: [28] | B34: Thies 2001 | C34: Placebo | D34: UK | E34: 8 | F34: M/F | G34: 12 | H34: 11.6 ± 0.6 MJ/d | I34: 2772.4 | J34: 32.8 ± 0.8 en% | K34: 32.8 | L34: 29.11222046 | N34: 10.17 ± 0.80 g/d LA | O34: =100*10.17*$B$102/I34 -> 3.301471649 | P34: 0.73 ± 0.05 g/d ALA | Q34: =100*$B$102*0.73/I34 -> 0.2369787909 | R34: 0.17 ± 0.03 g/d AA | S34: =100*0.17*$B$102/I34 -> 0.05518684173 | T34: 0.11 ± 0.03 g/d EPA, 0.18 ± 0.05 g/d DHA | U34: =100*$B$102*(0.11+0.18)/I34 -> 0.09414225941 | V34: Yes | W34: Plasma Phospholipids | X34: 2.63 ± 0.27% Tot FA | Y34: 2.63 | Z34: 9.01 ± 0.86% Tot FA | AA34: 9.01 | AB34: NR | AD34: NR | AF34: 0.83 ± 0.08% Tot FA | AG34: 0.83 | AH34: NR | AJ34: 3.28 ± 0.36% Tot FA | AK34: 3.28 | AL34: NR | AN34: No | AO34: 11.64 | AP34: 4.11 | AQ34: 15.75 | AR34: 67.6458517 | AS34: 73.9047619 | AT34: 32.3541483 | AU34: 26.0952381
A35: [29] | B35: Wallace 2003 | C35: ALNA | D35: UK | E35: 8 | F35: M | G35: 12 | H35: 10.6 ± 0.4 MJ/d | I35: =10.6*$B$101 -> 2533.4 | J35: 33.6 ± 0.9 en% | K35: 33.6 | L35: 26.75781164 | N35: 14.20 ± 1.58 g/d LA | O35: =100*14.2*$B$102/I35 -> 5.044604089 | P35: 4.66 ± 0.14 g/d ALA | Q35: =100*$B$102*4.66/I35 -> 1.65548275 | R35: 0.28 ± 0.02 g/d AA | S35: =100*0.28*$B$102/I35 -> 0.09947106655 | T35: 0.06 ± 0.02 g/d EPA, 0.06 ± 0.01 g/d DHA | U35: =100*(0.06+0.06)*$B$102/I35 -> 0.04263045709 | V35: Yes | W35: Plasma Phospholipids | X35: NR | Z35: 8.0 ± 0.3% Tot FA | AA35: 8 | AB35: NR | AD35: NR | AF35: 1.6 ± 0.3% Tot FA | AG35: 1.6 | AH35: NR | AJ35: 4.0 ± 0.4% Tot FA | AK35: 4 | AL35: NR | AN35: No | AO35: 8 | AP35: 5.6 | AQ35: 13.6 | AR35: 73.16007392 | AS35: 58.82352941 | AT35: 26.83992608 | AU35: 41.17647059
A36: [29] | B36: Wallace 2003 | C36: High-FO | D36: UK | E36: 8 | F36: M | G36: 12 | H36: 10.6 ± 0.4 MJ/d | I36: =10.6*$B$101 -> 2533.4 | J36: 33.6 ± 0.9 en% | K36: 33.6 | L36: 28.32803347 | N36: 11.29 ± 2.10 g/d LA | O36: =100*11.29*$B$102/I36 -> 4.010815505 | P36: 1.12 ± 0.11 g/d ALA | Q36: =100*$B$102*1.12/I36 -> 0.3978842662 | R36: 0.33 ± 0.02 g/d AA | S36: =100*0.33*$B$102/I36 -> 0.117233757 | T36: 0.56 ± 0.01 g/d EPA, 1.54 ± 0.02 g/d DHA | U36: =100*(0.56+1.54)*$B$102/I36 -> 0.7460329991 | V36: Yes | W36: Plasma Phospholipids | X36: NR | Z36: 8.2 ± 0.7% Tot FA | AA36: 8.2 | AB36: NR | AD36: NR | AF36: 2.0 ± 0.6% Tot FA | AG36: 2 | AH36: NR | AJ36: 6.8 ± 0.5% Tot FA | AK36: 6.8 | AL36: NR | AN36: No | AO36: 8.2 | AP36: 8.8 | AQ36: 17 | AR36: 44.67030842 | AS36: 48.23529412 | AT36: 55.32969158 | AU36: 51.76470588
A37: [29] | B37: Wallace 2003 | C37: Low-FO | D37: UK | E37: 8 | F37: M | G37: 12 | H37: 10.6 ± 0.4 MJ/d | I37: =10.6*$B$101 -> 2533.4 | J37: 33.6 ± 0.9 en% | K37: 33.6 | L37: 27.0064893 | N37: 16.09 ± 1.45 g/d LA | O37: =100*16.09*$B$102/I37 -> 5.716033789 | P37: 1.64 ± 0.14 g/d ALA | Q37: =100*$B$102*1.64/I37 -> 0.5826162469 | R37: 0.17 ± 0.03 g/d AA | S37: =100*0.17*$B$102/I37 -> 0.06039314755 | T37: 0.23 ± 0.03 g/d EPA, 0.43 ± 0.05 g/d DHA | U37: =100*(0.23+0.43)*$B$102/I37 -> 0.234467514 | V37: Yes | W37: Plasma Phospholipids | X37: NR | Z37: 7.4 ± 0.4% Tot FA | AA37: 7.4 | AB37: NR | AD37: NR | AF37: 1.5 ± 0.3% Tot FA | AG37: 1.5 | AH37: NR | AJ37: 5.9 ± 0.7% Tot FA | AK37: 5.9 | AL37: NR | AN37: No | AO37: 7.4 | AP37: 7.4 | AQ37: 14.8 | AR37: 64.74322509 | AS37: 50 | AT37: 35.25677491 | AU37: 50
A38: [29] | B38: Wallace 2003 | C38: Med-FO | D38: UK | E38: 8 | F38: M | G38: 12 | H38: 10.6 ± 0.4 MJ/d | I38: =10.6*$B$101 -> 2533.4 | J38: 33.6 ± 0.9 en% | K38: 33.6 | L38: 27.89107129 | N38: 13.25 ± 1.71 g/d LA | O38: =100*13.25*$B$102/I38 -> 4.707112971 | P38: 1.38 ± 0.15 g/d ALA | Q38: =100*$B$102*1.38/I38 -> 0.4902502566 | R38: 0.36 ± 0.03 g/d AA | S38: =100*0.36*$B$102/I38 -> 0.1278913713 | T38: 0.33 ± 0.03 g/d EPA, 0.75 ± 0.11 g/d DHA | U38: =100*(0.33+0.75)*$B$102/I38 -> 0.3836741138 | V38: Yes | W38: Plasma Phospholipids | X38: NR | Z38: 7.0 ± 0.4% Tot FA | AA38: 7 | AB38: NR | AD38: NR | AF38: 1.7 ± 0.3% Tot FA | AG38: 1.7 | AH38: NR | AJ38: 7.8 ± 0.8% Tot FA | AK38: 7.8 | AL38: NR | AN38: No | AO38: 7 | AP38: 9.5 | AQ38: 16.5 | AR38: 61.21499733 | AS38: 42.42424242 | AT38: 38.78500267 | AU38: 57.57575758
A39: [29] | B39: Wallace 2003 | C39: Placebo | D39: UK | E39: 8 | F39: M | G39: 12 | H39: 10.6 ± 0.4 MJ/d | I39: =10.6*$B$101 -> 2533.4 | J39: 33.6 ± 0.9 en% | K39: 33.6 | L39: 28.21435225 | N39: 13.34 ± 1.52 g/d LA | O39: =100*13.34*$B$102/I39 -> 4.739085814 | P39: 1.48 ± 0.15 g/d ALA | Q39: =100*$B$102*1.48/I39 -> 0.5257756375 | R39: 0.18 ± 0.04 g/d AA | S39: =100*0.18*$B$102/I39 -> 0.06394568564 | T39: 0.06 ± 0.02 g/d EPA, 0.10 ± 0.02 g/d DHA | U39: =100*(0.06+0.1)*$B$102/I39 -> 0.05684060946 | V39: Yes | W39: Plasma Phospholipids | X39: NR | Z39: 8.4 ± 0.5% Tot FA | AA39: 8.4 | AB39: NR | AD39: NR | AF39: 0.8 ± 0.3% Tot FA | AG39: 0.8 | AH39: NR | AJ39: 4.1 ± 0.3% Tot FA | AK39: 4.1 | AL39: NR | AN39: No | AO39: 8.4 | AP39: 4.9 | AQ39: 13.3 | AR39: 74.55121268 | AS39: 63.15789474 | AT39: 25.44878732 | AU39: 36.84210526
A40: [30] | B40: Dabadie 2006 | C40: Control | D40: France | E40: 29 | F40: M | G40: Observational | H40: 8800 kJ/d | I40: =8800*$B$100 -> 2103.2 | J40: 32.0 en% | K40: 32 | L40: 25.70906048 | M40: Subjects consumed Diet 1, Control Diet, and Diet 2 consecutively | N40: 5.5 en% LA (12.8 g/d) | O40: 5.5 | P40: 0.4 en% ALA (0.8 g/d) | Q40: 0.4 | R40: NR1 | S40: 0.07 | T40: 0.21 g/d EPA, 0.54 g/d DHA | U40: =100*(0.21+0.54)*$B$102/I40 -> 0.3209395207 | V40: No | W40: Plasma Phospholipids | X40: NR | Z40: 5.45 ± 0.98% Tot FA | AA40: 5.45 | AB40: NR | AD40: NR | AF40: 1.23 ± 0.50% Tot FA | AG40: 1.23 | AH40: 0.52 ± 0.11% Tot FA | AI40: 0.52 | AJ40: 2.73 ± 0.46% Tot FA | AK40: 2.73 | AL40: NR | AN40: No | AO40: 5.45 | AP40: 4.48 | AQ40: 9.93 | AR40: 61.6553326 | AS40: 54.88418933 | AT40: 38.3446674 | AU40: 45.11581067
A41: [30] | B41: Dabadie 2006 | C41: Diet 1 | D41: France | E41: 29 | F41: M | G41: 12 | H41: 8800 kJ/d | I41: =8800*$B$100 -> 2103.2 | J41: 33.0 en% | K41: 33 | L41: 27.10906048 | M41: Subjects consumed Diet 1, Control Diet, and Diet 2 consecutively | N41: 4.6 en% LA (10.7 g/d) | O41: 4.6 | P41: 0.9 en% ALA (2.1 g/d) | Q41: 0.9 | R41: NR1 | S41: 0.07 | T41: 0.21 g/d EPA, 0.54 g/d DHA | U41: =100*(0.21+0.54)*$B$102/I41 -> 0.3209395207 | V41: No | W41: Plasma Phospholipids | X41: NR | Z41: 5.54 ± 0.91% Tot FA | AA41: 5.54 | AB41: NR | AD41: NR | AF41: 1.75 ± 0.55% Tot FA | AG41: 1.75 | AH41: 0.56 ± 0.14% Tot FA | AI41: 0.56 | AJ41: 2.86 ± 0.62% Tot FA | AK41: 2.86 | AL41: NR | AN41: No | AO41: 5.54 | AP41: 5.17 | AQ41: 10.71 | AR41: 56.26066105 | AS41: 51.72735761 | AT41: 43.73933895 | AU41: 48.27264239
A42: [30] | B42: Dabadie 2006 | C42: Diet 2 | D42: France | E42: 29 | F42: M | G42: 12 | H42: 9200 KJ/d | I42: =9200*$B$100 -> 2198.8 | J42: 36.0 en% | K42: 36 | L42: 30.22301437 | M42: Subjects consumed Diet 1, Control Diet, and Diet 2 consecutively | N42: 4.5 en% LA (10.9 g/d) | O42: 4.5 | P42: 0.9 en% ALA (2.1 g/d) | Q42: 0.9 | R42: NR1 | S42: 0.07 | T42: 0.21 g/d EPA, 0.54 g/d DHA | U42: =100*(0.21+0.54)*$B$102/I42 -> 0.3069856285 | V42: No | W42: Plasma Phospholipids | X42: NR | Z42: 5.83 ± 1.25% Tot FA | AA42: 5.83 | AB42: NR | AD42: NR | AF42: 1.16 ± 0.29% Tot FA | AG42: 1.16 | AH42: 0.46 ± 0.12% Tot FA | AI42: 0.46 | AJ42: 2.28 ± 0.45% Tot FA | AK42: 2.28 | AL42: NR | AN42: No | AO42: 5.83 | AP42: 3.9 | AQ42: 9.73 | AR42: 56.35605899 | AS42: 59.91778006 | AT42: 43.64394101 | AU42: 40.08221994
A43: [31] | B43: Forsythe 2008 | C43: Low Fat | D43: US | E43: 20 | F43: M/F | G43: 12 | H43: 1478 ± 435 kcal/d | I43: 1478 | J43: 23.8 ± 6.8 en% | K43: 23.8 | L43: 21.69677943 | N43: 2.9 ± 2.0 g/d LA | O43: =100*2.9*$B$102/I43 -> 1.765899865 | P43: 325 ± 198 mg/d ALA | Q43: =100*$B$102*(325/1000)/I43 -> 0.197902571 | R43: NR1 | S43: 0.07 | T43: 32 ± 58 mg/d EPA, 82 ± 154 mg/d DHA | U43: =100*$B$102*((32+82)/1000)/I43 -> 0.06941813261 | V43: No | W43: Serum Phospholipids | X43: 3.50 ± 0.72 mg/dL | Y43: =3.5/173*100 -> 2.023121387 | Z43: 11.48 ± 1.97 mg/dL | AA43: =11.48/173*100 -> 6.63583815 | AB43: 0.42 ± 0.09 mg/dL | AC43: =0.42/173*100 -> 0.2427745665 | AD43: 0.36 ± 0.13 mg/dL | AE43: =0.36/173*100 -> 0.2080924855 | AF43: 0.68 ± 0.48 mg/dL | AG43: =0.68/173*100 -> 0.3930635838 | AH43: 0.86 ± 0.20 mg/dL | AI43: =0.82/173*100 -> 0.4739884393 | AJ43: 2.71 ± 0.83 mg/dL | AK43: =2.71/173*100 -> 1.566473988 | AL43: 0.10 ± 0.05 mg/dL | AM43: =0.1/173*100 -> 0.05780346821 | AN43: Yes | AO43: 9.10982659 | AP43: 2.433526012 | AQ43: 11.60115607 | AR43: 63.81527218 | AS43: 78.52516193 | AT43: 36.18472782 | AU43: 20.97658196
A44: [31] | B44: Forsythe 2008 | C44: Very Low Carbohydrate | D44: US | E44: 20 | F44: M/F | G44: 12 | H44: 1504 ± 494 kcal/d | I44: 1504 | J44: 58.9 ± 5.4 en% | K44: 58.9 | L44: 53.59875 | N44: 7.7 ± 5.1 g/d LA | O44: =100*7.7*$B$102/I44 -> 4.607712766 | P44: 879 ± 746 mg/d ALA | Q44: =100*$B$102*(879/1000)/I44 -> 0.5259973404 | R44: NR1 | S44: 0.07 | T44: 46 ± 81 mg/d EPA, 117 ± 184 mg/d DHA | U44: =100*$B$102*((46+117)/1000)/I44 -> 0.09753989362 | V44: No | W44: Serum Phospholipids | X44: 2.29 ± 0.55 mg/dL | Y44: =2.29/170*100 -> 1.347058824 | Z44: 13.70 ± 1.82 mg/dL | AA44: =13.7/170*100 -> 8.058823529 | AB44: 0.40 ± 0.09 mg/dL | AC44: =0.4/170*100 -> 0.2352941176 | AD44: 0.39 ± 0.11 mg/dL | AE44: =0.39/170*100 -> 0.2294117647 | AF44: 0.42 ± 0.15 mg/dL | AG44: =0.42/170*100 -> 0.2470588235 | AH44: 0.74 ± 0.16 mg/dL | AI44: =0.74/170*100 -> 0.4352941176 | AJ44: 2.80 ± 0.81 mg/dL | AK44: =2.8/170*100 -> 1.647058824 | AL44: 0.06 ± 0.03 mg/dL | AM44: =0.06/170*100 -> 0.03529411765 | AN44: Yes | AO44: 9.870588235 | AP44: 2.329411765 | AQ44: 12.23529412 | AR44: 69.74664064 | AS44: 80.67307692 | AT44: 30.25335936 | AU44: 19.03846154
A45: [32] | B45: Valsta 1996 | C45: Habitual | D45: Finland | E45: 28 | F45: M/F | G45: 6 | H45: 9.6 ± 2.6 MJ/d | I45: =9.6*$B$101 -> 2294.4 | J45: 33.2 ± 6.4 en% | K45: 33.2 | L45: =K45-(U45+S45+Q45+O45) -> 28.23 | M45: Subjects consumed TSO Diet, Habitual Diet, and RO Diet consecutively | N45: 4.2 ± 1.4 en% LA | O45: 4.2 | P45: 0.59 ± 0.24 en% ALA | Q45: 0.59 | R45: NR1 | S45: 0.07 | T45: 0.03 ± 0.04 en% EPA, 0.08 ± 0.09 en% DHA | U45: =0.03+0.08 -> 0.11 | V45: No | W45: Plasma Phospholipids | X45: 2.3 ± 0.5% Tot FA | Y45: 2.3 | Z45: 7.3 ± 1.1% Tot FA | AA45: 7.3 | AB45: NR | AD45: NR | AF45: 1.4 ± 0.4% Tot FA | AG45: 1.4 | AH45: 0.9 ± 0.1% Tot FA | AI45: 0.9 | AJ45: 5.2 ± 0.9% Tot FA | AK45: 5.2 | AL45: NR | AN45: No | AO45: 9.6 | AP45: 7.5 | AQ45: 17.1 | AR45: 68.87919825 | AS45: 56.14035088 | AT45: 31.12080175 | AU45: 43.85964912
A46: [32] | B46: Valsta 1996 | C46: Trisun-Sunflower Oil | D46: Finland | E46: 28 | F46: M/F | G46: 6 | H46: 10.3 ± 1.7 MJ/d | I46: =10.3*$B$101 -> 2461.7 | J46: 38.9 ± 4.5 en% | K46: 38.9 | L46: =K46-(U46+S46+Q46+O46) -> 30.7 | M46: Subjects consumed TSO Diet, Habitual Diet, and RO Diet consecutively | N46: 7.8 ± 1.4 en% LA | O46: 7.8 | P46: 0.30 ± 0.09 en% ALA | Q46: 0.3 | R46: NR1 | S46: 0.07 | T46: 0.01 ± 0.008 en% EPA, 0.02 ± 0.02 en% DHA | U46: =0.01+0.02 -> 0.03 | V46: No | W46: Plasma Phospholipids | X46: 2.4 ± 0.5% Tot FA | Y46: 2.4 | Z46: 8.0 ± 1.5% Tot FA | AA46: 8 | AB46: NR | AD46: NR | AF46: 0.6 ± 0.3% Tot FA | AG46: 0.6 | AH46: 0.6 ± 0.1% Tot FA | AI46: 0.6 | AJ46: 4.1 ± 0.7% Tot FA | AK46: 4.1 | AL46: NR | AN46: No | AO46: 10.4 | AP46: 5.3 | AQ46: 15.7 | AR46: 82.70896741 | AS46: 66.24203822 | AT46: 17.29103259 | AU46: 33.75796178
A47: [32] | B47: Valsta 1996 | C47: Rapeseed Oil | D47: Finland | E47: 28 | F47: M/F | G47: 6 | H47: 10.1 ± 2.1 MJ/d | I47: =10.1*$B$101 -> 2413.9 | J47: 40.8 ± 4.2 en% | K47: 40.8 | L47: =K47-(U47+S47+Q47+O47) -> 32.4 | M47: Subjects consumed TSO Diet, Habitual Diet, and RO Diet consecutively | N47: 6.1 ± 0.64 en% LA | O47: 6.1 | P47: 2.2 ± 0.31 en% ALA | Q47: 2.2 | R47: NR1 | S47: 0.07 | T47: 0.01 ± 0.006 en% EPA, 0.02 ± 0.01 en% DHA | U47: =0.01+0.02 -> 0.03 | V47: No | W47: Plasma Phospholipids | X47: 2.0 ± 0.4% Tot FA | Y47: 2 | Z47: 7.4 ± 1.2% Tot FA | AA47: 7.4 | AB47: NR | AD47: NR | AF47: 1.3 ± 0.4% Tot FA | AG47: 1.3 | AH47: 0.8 ± 0.2% Tot FA | AI47: 0.8 | AJ47: 4.5 ± 0.6% Tot FA | AK47: 4.5 | AL47: NR | AN47: No | AO47: 9.4 | AP47: 6.6 | AQ47: 16 | AR47: 70.13262475 | AS47: 58.75 | AT47: 29.86737525 | AU47: 41.25
A48: [33] | B48: Almario 2001 | C48: Habitual + Walnuts | D48: US | E48: 18 | F48: M/F | G48: 6 | H48: 9767 ± 541 kJ/d | I48: =9767*$B$100 -> 2334.313 | J48: 37.2 ± 1.4 en% | K48: 37.2 | L48: =K48-(Q48+U48+O48+S48) -> 23.25577901 | M48: Same subjects consumed each diet consecutively | N48: 30.3 ± 1.8 g/d LA | O48: =100*30.3*$B$102/I48 -> 11.68223799 | P48: 5.4 ± 0.3 g/d ALA | Q48: =100*$B$102*5.4/I48 -> 2.081983007 | R48: NR1 | S48: 0.07 | T48: NR1 | U48: 0.11 | V48: No | W48: Plasma Total Lipids | X48: NR | Z48: 6.33 ± 0.39% Tot FA | AA48: 6.33 | AB48: NR | AD48: NR | AF48: 0.86 ± 0.13% Tot FA | AG48: 0.86 | AH48: NR | AJ48: 2.04 ± 0.18% Tot FA | AK48: 2.04 | AL48: NR | AN48: No | AO48: 6.33 | AP48: 2.9 | AQ48: 9.23 | AR48: 75.55364149 | AS48: 68.58071506 | AT48: 24.44635851 | AU48: 31.41928494
A49: [33] | B49: Almario 2001 | C49: Habitual | D49: US | E49: 18 | F49: M/F | G49: 4 | H49: 8106 ± 456 kJ/d | I49: =8106*$B$100 -> 1937.334 | J49: 31.4 ± 1.9 en% | K49: 31.4 | L49: 25.41305086 | M49: Same subjects consumed each diet consecutively | N49: 11.2 ± 1.4 g/d LA | O49: =100*11.2*$B$102/I49 -> 5.203026427 | P49: 1.3 ± 0.2 g/d ALA | Q49: =100*$B$102*1.3/I49 -> 0.6039227103 | R49: NR1 | S49: 0.07 | T49: NR1 | U49: 0.11 | V49: No | W49: Plasma Total Lipids | X49: NR | Z49: 7.26 ± 0.42% Tot FA | AA49: 7.26 | AB49: NR | AD49: NR | AF49: 0.89 ± 0.22% Tot FA | AG49: 0.89 | AH49: NR | AJ49: 2.28 ± 0.30% Tot FA | AK49: 2.28 | AL49: NR | AN49: No | AO49: 7.26 | AP49: 3.17 | AQ49: 10.43 | AR49: 71.99865837 | AS49: 69.60690316 | AT49: 28.00134163 | AU49: 30.39309684
A50: [33] | B50: Almario 2001 | C50: Low Fat + Walnuts | D50: US | E50: 18 | F50: M/F | G50: 6 | H50: 8169 ± 404 kJ/d | I50: =8169*$B$100 -> 1952.391 | J50: 33.7 ± 1.6 en% | K50: 33.7 | L50: 19.36812161 | M50: Same subjects consumed each diet consecutively | N50: 25.8 ± 1.2 g/d LA | O50: =100*25.8*$B$102/I50 -> 11.89310953 | P50: 4.9 ± 0.2 g/d ALA | Q50: =100*$B$102*4.9/I50 -> 2.258768863 | R50: NR1 | S50: 0.07 | T50: NR1 | U50: 0.11 | V50: No | W50: Plasma Total Lipids | X50: NR | Z50: 6.52 ± 0.46% Tot FA | AA50: 6.52 | AB50: NR | AD50: NR | AF50: 0.83 ± 0.17% Tot FA | AG50: 0.83 | AH50: NR | AJ50: 2.25 ± 0.25% Tot FA | AK50: 2.23 | AL50: NR | AN50: No | AO50: 6.52 | AP50: 3.06 | AQ50: 9.58 | AR50: 75.35075592 | AS50: 68.05845511 | AT50: 24.64924408 | AU50: 31.94154489
A51: [33] | B51: Almario 2001 | C51: Low Fat | D51: US | E51: 18 | F51: M/F | G51: 6 | H51: 6655 ± 371 kJ/d | I51: =6655*$B$100 -> 1590.545 | J51: 19.7 ± 1.0 en% | K51: 19.7 | L51: 15.6156779 | M51: Same subjects consumed each diet consecutively | N51: 6.2 ± 0.5 g/d LA | O51: =100*6.2*$B$102/I51 -> 3.508231455 | P51: 0.7 ± 0.1 g/d ALA | Q51: =100*$B$102*0.7/I51 -> 0.3960906482 | R51: NR1 | S51: 0.07 | T51: NR1 | U51: 0.11 | V51: No | W51: Plasma Total Lipids | X51: NR | Z51: 7.55 ± 0.41% Tot FA | AA51: 7.55 | AB51: NR | AD51: NR | AF51: 0.99 ± 0.26% Tot FA | AG51: 0.99 | AH51: NR | AJ51: 2.59 ± 0.34% Tot FA | AK51: 2.59 | AL51: NR | AN51: No | AO51: 7.55 | AP51: 3.58 | AQ51: 11.13 | AR51: 68.67461264 | AS51: 67.83468104 | AT51: 31.32538736 | AU51: 32.16531896
A52: [34] | B52: Bourque 2003 | C52: Control | D52: Canada | E52: 17 | F52: F | G52: 4 | H52: NR | J52: 40 en% | K52: 40 | L52: 36.94 | M52: Subjects switched diets after 8 wk wash-out period | N52: 6.4 ± 1.6% Tot FA LA | O52: =(6.4/100)*40 -> 2.56 | P52: 0.8 ± 0.1% Tot FA ALA | Q52: =(0.8/100)*40 -> 0.32 | R52: NR1 | S52: 0.07 | T52: NR1 | U52: 0.11 | V52: No | W52: RBC Total Lipids | X52: NR | Z52: 17.72 ± 0.32% Tot FA | AA52: 17.72 | AB52: NR | AD52: NR | AF52: 0.66 ± 0.06% Tot FA | AG52: 0.66 | AH52: 3.76 ± 0.19% Tot FA | AI52: 3.76 | AJ52: 4.47 ± 0.16% Tot FA | AK52: 4.47 | AL52: NR | AN52: No | AO52: 17.72 | AP52: 8.89 | AQ52: 26.61 | AR52: 62.13653153 | AS52: 66.59150695 | AT52: 37.86346847 | AU52: 33.40849305
A53: [34] | B53: Bourque 2003 | C53: Functional Oil | D53: Canada | E53: 17 | F53: F | G53: 4 | H53: NR | J53: 40 en% | K53: 40 | L53: 35.14 | M53: Subjects switched diets after 3 wk wash-out period | N53: 7.1 ± 1.6% Tot FA LA | O53: =(7.1/100)*40 -> 2.84 | P53: 4.6 ± 1.3% Tot FA ALA | Q53: =(4.6/100)*40 -> 1.84 | R53: NR1 | S53: 0.07 | T53: NR1 | U53: 0.11 | V53: No | W53: RBC Total Lipids | X53: NR | Z53: 16.60 ± 0.37% Tot FA | AA53: 16.6 | AB53: NR | AD53: NR | AF53: 1.13 ± 0.08% Tot FA | AG53: 1.13 | AH53: 4.00 ± 0.19% Tot FA | AI53: 4 | AJ53: 4.56 ± 0.18% Tot FA | AK53: 4.56 | AL53: NR | AN53: No | AO53: 16.6 | AP53: 9.69 | AQ53: 26.29 | AR53: 53.57870012 | AS53: 63.14187904 | AT53: 46.42129988 | AU53: 36.85812096
A54: [35] | B54: Goyens 2006 | C54: Control | D54: US | E54: 9 | F54: M/F | G54: 6 | H54: NR | J54: 35 en% | K54: 35 | L54: 27.42 | N54: 7 en% LA | O54: 7 | P54: 0.4 en% ALA | Q54: 0.4 | R54: NR1 | S54: 0.07 | T54: NR1 | U54: 0.11 | V54: No | W54: Plasma Phospholipids | X54: NR | Z54: 9.53% Tot FA | AA54: 9.53 | AB54: NR | AD54: NR | AF54: 0.60% Tot FA | AG54: 0.6 | AH54: 0.83% Tot FA | AI54: 0.83 | AJ54: 2.65% Tot FA | AK54: 2.65 | AL54: NR | AN54: No | AO54: 9.53 | AP54: 4.08 | AQ54: 13.61 | AR54: 76.50912646 | AS54: 70.02204262 | AT54: 23.49087354 | AU54: 29.97795738
A55: [35] | B55: Goyens 2006 | C55: High ALA | D55: US | E55: 10 | F55: M/F | G55: 6 | H55: NR | J55: 35 en% | K55: 35 | L55: 26.72 | N55: 7 en% LA | O55: 7 | P55: 1.1 en% ALA | Q55: 1.1 | R55: NR1 | S55: 0.07 | T55: NR1 | U55: 0.11 | V55: No | W55: Plasma Phospholipids | X55: NR | Z55: 9.00% Tot FA | AA55: 9 | AB55: NR | AD55: NR | AF55: 0.86% Tot FA | AG55: 0.86 | AH55: 0.96% Tot FA | AI55: 0.96 | AJ55: 2.95% Tot FA | AK55: 2.95 | AL55: NR | AN55: No | AO55: 9 | AP55: 4.77 | AQ55: 13.77 | AR55: 73.08847209 | AS55: 65.35947712 | AT55: 26.91152791 | AU55: 34.64052288
A56: [35] | B56: Goyens 2006 | C56: Low LA | D56: US | E56: 10 | F56: M/F | G56: 6 | H56: NR | J56: 35 en% | K56: 35 | L56: 31.42 | N56: 3 en% LA | O56: 3 | P56: 0.4 en% ALA | Q56: 0.4 | R56: NR1 | S56: 0.07 | T56: NR1 | U56: 0.11 | V56: No | W56: Plasma Phospholipids | X56: NR | Z56: 9.04% Tot FA | AA56: 9.04 | AB56: NR | AD56: NR | AF56: 0.84% Tot FA | AG56: 0.84 | AH56: 0.88% Tot FA | AI56: 0.88 | AJ56: 2.47% Tot FA | AK56: 2.47 | AL56: NR | AN56: No | AO56: 9.04 | AP56: 4.19 | AQ56: 13.23 | AR56: 64.71290781 | AS56: 68.32955404 | AT56: 35.28709219 | AU56: 31.67044596
A57: [36] | B57: Griel 2007 | C57: ALA | D57: US | E57: 21 | F57: M/F | G57: 6 | H57: 2400 kcal/d | I57: 2400 | J57: 37.6 en% | K57: 37.6 | L57: 20.42 | M57: Subjects switched diets after 3 wk wash-out period | N57: 10.5 en% LA | O57: 10.5 | P57: 6.5 en% ALA | Q57: 6.5 | R57: NR1 | S57: 0.07 | T57: NR1 | U57: 0.11 | V57: No | W57: Serum Total Lipids | X57: NR | Z57: 7.3 ± 0.4% Tot FA | AA57: 7.3 | AB57: NR | AD57: NR | AF57: 1.2 ± 0.1% Tot FA | AG57: 1.2 | AH57: 0.7 ± 0.04% Tot FA | AI57: 0.7 | AJ57: 1.5 ± 0.1% Tot FA | AK57: 1.5 | AL57: NR | AN57: No | AO57: 7.3 | AP57: 3.4 | AQ57: 10.7 | AR57: 62.6292615 | AS57: 68.22429907 | AT57: 37.3707385 | AU57: 31.77570093
A58: [36] | B58: Griel 2007 | C58: Average American | D58: US | E58: 21 | F58: M/F | G58: 6 | H58: 2500 kcal/d | I58: 2500 | J58: 34.5 en% | K58: 34.5 | L58: 25.82 | M58: Subjects switched diets after 3 wk wash-out period | N58: 7.7 en% LA | O58: 7.7 | P58: 0.8 en% ALA | Q58: 0.8 | R58: NR1 | S58: 0.07 | T58: NR1 | U58: 0.11 | V58: No | W58: Serum Total Lipids | X58: NR | Z58: 8.2 ± 0.4% Tot FA | AA58: 8.2 | AB58: NR | AD58: NR | AF58: 0.5 ± 0.1% Tot FA | AG58: 0.5 | AH58: 0.6 ± 0.04% Tot FA | AI58: 0.6 | AJ58: 1.6 ± 0.1% Tot FA | AK58: 1.6 | AL58: NR | AN58: No | AO58: 8.2 | AP58: 2.7 | AQ58: 10.9 | AR58: 75.64891069 | AS58: 75.2293578 | AT58: 24.35108931 | AU58: 24.7706422
A59: [36] | B59: Griel 2007 | C59: LA | D59: US | E59: 21 | F59: M/F | G59: 6 | H59: 2400 kcal/d | I59: 2400 | J59: 37.1 en% | K59: 37.1 | L59: 20.72 | M59: Subjects switched diets after 3 wk wash-out period | N59: 12.6 en% LA | O59: 12.6 | P59: 3.6 en% ALA | Q59: 3.6 | R59: NR1 | S59: 0.07 | T59: NR1 | U59: 0.11 | V59: No | W59: Serum Total Lipids | X59: NR | Z59: 7.5 ± 0.4% Tot FA | AA59: 7.5 | AB59: NR | AD59: NR | AF59: 0.7 ± 0.1% Tot FA | AG59: 0.7 | AH59: 0.7 ± 0.04% Tot FA | AI59: 0.7 | AJ59: 1.7 ± 0.1% Tot FA | AK59: 1.7 | AL59: NR | AN59: No | AO59: 7.5 | AP59: 3.1 | AQ59: 10.6 | AR59: 72.32880314 | AS59: 70.75471698 | AT59: 27.67119686 | AU59: 29.24528302
A60: [37] | B60: Li 1999 | C60: High-ALA | D60: US | E60: 7 | F60: M | G60: 4 | H60: 9708 ± 3271 kJ/d | I60: =9708*$B$100 -> 2320.212 | J60: 33.0 ± 4.4 en% | K60: 33 | L60: 23.07625779 | N60: 7.3 ± 2.0 en% LA | O60: 7.3 | P60: 6.3 ± 1.7 en% ALA | Q60: =100*$B$102*6.3/I60 -> 2.44374221 | R60: NR1 | S60: 0.07 | T60: NR1 | U60: 0.11 | V60: No | W60: Plasma Phospholipids | X60: 2.6 ± 0.8% Tot FA | Y60: 2.6 | Z60: 8.6 ± 2.2% Tot FA | AA60: 8.6 | AB60: 0.3 ± 0.1% Tot FA | AC60: 0.3 | AD60: 0.2 ± 0.1% Tot FA | AE60: 0.2 | AF60: 1.4 ± 0.7% Tot FA | AG60: 1.4 | AH60: 1.5 ± 0.1% Tot FA | AI60: 1.5 | AJ60: 1.9 ± 0.5% Tot FA | AK60: 1.9 | AL60: NR | AN60: No | AO60: 11.7 | AP60: 4.8 | AQ60: 16.5 | AR60: 68.15102607 | AS60: 70.90909091 | AT60: 31.84897393 | AU60: 29.09090909
A61: [37] | B61: Li 1999 | C61: Moderate- ALA | D61: US | E61: 10 | F61: M/F | G61: 4 | H61: 8672 ± 2138 kJ/d | I61: =8672*$B$100 -> 2072.608 | J61: 30.7 ± 3.8 en% | K61: 30.7 | L61: 22.65152897 | N61: 7.0 ± 2.3 en% LA | O61: 7 | P61: 2.0 ± 1.0 en% ALA | Q61: =100*$B$102*2/I61 -> 0.8684710278 | R61: NR1 | S61: 0.07 | T61: NR1 | U61: 0.11 | V61: No | W61: Plasma Phospholipids | X61: 13.2 ± 0.7% Tot FA | Y61: 3.2 | Z61: 10.1 ± 2.5% Tot FA | AA61: 10.1 | AB61: 0.4 ± 0.1% Tot FA | AC61: 0.4 | AD61: 0.2 ± 0.0% Tot FA | AE61: 0.2 | AF61: 0.9 ± 0.4% Tot FA | AG61: 0.9 | AH61: 1.3 ± 0.3% Tot FA | AI61: 1.3 | AJ61: 2.1 ± 0.6% Tot FA | AK61: 2.1 | AL61: NR | AN61: No | AO61: 13.9 | AP61: 4.3 | AQ61: 18.2 | AR61: 74.41341319 | AS61: 76.37362637 | AT61: 25.58658681 | AU61: 23.62637363
A62: [38] | B62: Lichtenstein 2006 | C62: High-Oleic Acid Soybean Oil | D62: US | E62: 30 | F62: M/F | G62: 5 | H62: NR | J62: 29.0 en% | K62: 29 | L62: 26.02 | M62: Subjects consumed each diets consecutively | N62: 2.05 en% LA | O62: 2.05 | P62: 0.75 en% ALA | Q62: 0.75 | R62: NR1 | S62: 0.07 | T62: NR1 | U62: 0.11 | V62: No | W62: Plasma Phospholipids | X62: NR | Z62: 8.66 ± 1.44% Tot FA | AA62: 8.66 | AB62: NR | AD62: NR | AF62: 0.81 ± 0.27% Tot FA | AG62: 0.81 | AH62: NR | AJ62: 2.83 ± 0.69% Tot FA | AK62: 2.83 | AL62: NR | AN62: No | AO62: 8.66 | AP62: 3.64 | AQ62: 12.3 | AR62: 55.32150161 | AS62: 70.40650407 | AT62: 44.67849839 | AU62: 29.59349593
A63: [38] | B63: Lichtenstein 2006 | C63: Low-Alpha Linolenic Acid Soybean Oil | D63: US | E63: 30 | F63: M/F | G63: 5 | H63: NR | J63: 31.1 en% | K63: 31.1 | L63: 17.5 | M63: Subjects consumed each diets consecutively | N63: 12.61 en% LA | O63: 12.61 | P63: 0.81 en% ALA | Q63: 0.81 | R63: NR1 | S63: 0.07 | T63: NR1 | U63: 0.11 | V63: No | W63: Plasma Phospholipids | X63: NR | Z63: 8.77 ± 1.62% Tot FA | AA63: 8.77 | AB63: NR | AD63: NR | AF63: 0.43 ± 0.17% Tot FA | AG63: 0.43 | AH63: NR | AJ63: 2.61 ± 0.61% Tot FA | AK63: 2.61 | AL63: NR | AN63: No | AO63: 8.77 | AP63: 3.04 | AQ63: 11.81 | AR63: 80.44541534 | AS63: 74.25910246 | AT63: 19.55458466 | AU63: 25.74089754
A64: [38] | B64: Lichtenstein 2006 | C64: Low-Saturated Fatty Acid Soybean Oi | D64: US | E64: 30 | F64: M/F | G64: 5 | H64: NR | J64: 29.5 en% | K64: 29.5 | L64: 14.78 | M64: Subjects consumed each diets consecutively | N64: 12.90 en% LA | O64: 12.9 | P64: 1.64 en% ALA | Q64: 1.64 | R64: NR1 | S64: 0.07 | T64: NR1 | U64: 0.11 | V64: No | W64: Plasma Phospholipids | X64: NR | Z64: 8.97 ± 1.56% Tot FA | AA64: 8.97 | AB64: NR | AD64: NR | AF64: 0.55 ± 0.19% Tot FA | AG64: 0.55 | AH64: NR | AJ64: 2.65 ± 0.59% Tot FA | AK64: 2.65 | AL64: NR | AN64: No | AO64: 8.97 | AP64: 3.2 | AQ64: 12.17 | AR64: 78.15773295 | AS64: 73.70583402 | AT64: 21.84226705 | AU64: 26.29416598
A65: [38] | B65: Lichtenstein 2006 | C65: Partially Hydrogenated Soybean Oil | D65: US | E65: 30 | F65: M/F | G65: 5 | H65: NR | J65: 28.9 en% | K65: 28.9 | L65: 20.1 | M65: Subjects consumed each diets consecutively | N65: 7.93 en% LA | O65: 7.93 | P65: 0.69 en% ALA | Q65: 0.69 | R65: NR1 | S65: 0.07 | T65: NR1 | U65: 0.11 | V65: No | W65: Plasma Phospholipids | X65: NR | Z65: 8.28 ± 1.37% Tot FA | AA65: 8.28 | AB65: NR | AD65: NR | AF65: 0.48 ± 0.21% Tot FA | AG65: 0.48 | AH65: NR | AJ65: 2.66 ± 0.69% Tot FA | AK65: 2.66 | AL65: NR | AN65: No | AO65: 8.28 | AP65: 3.14 | AQ65: 11.42 | AR65: 76.76007885 | AS65: 72.50437828 | AT65: 23.23992115 | AU65: 27.49562172
A66: [38] | B66: Lichtenstein 2006 | C66: Soybean Oil | D66: US | E66: 30 | F66: M/F | G66: 5 | H66: NR | J66: 31.2 en% | K66: 31.2 | L66: 18.37 | M66: Subjects consumed each diets consecutively | N66: 11.21 en% LA | O66: 11.21 | P66: 1.44 en% ALA | Q66: 1.44 | R66: NR1 | S66: 0.07 | T66: NR1 | U66: 0.11 | V66: No | W66: Plasma Phospholipids | X66: NR | Z66: 8.89 ± 1.59% Tot FA | AA66: 8.89 | AB66: NR | AD66: NR | AF66: 0.56 ± 0.18% Tot FA | AG66: 0.56 | AH66: NR | AJ66: 2.71 ± 0.58% Tot FA | AK66: 2.71 | AL66: NR | AN66: No | AO66: 8.89 | AP66: 3.27 | AQ66: 12.16 | AR66: 77.33745818 | AS66: 73.10855263 | AT66: 22.66254182 | AU66: 26.89144737
A67: [39] | B67: Raatz 2001 | C67: High Fat | D67: US | E67: 10 | F67: M/F | G67: 4 | H67: NR | J67: 45 en% | K67: 45 | L67: 32.02 | M67: Subjects switched diets after 3-4 wk wash-out period | N67: 12.0 en% LA | O67: 12 | P67: 0.8 en% ALA | Q67: 0.8 | R67: NR1 | S67: 0.07 | T67: NR1 | U67: 0.11 | V67: No | W67: Plasma Phospholipids | X67: NR | Z67: 10.26 ± 0.36% Tot FA | AA67: 10.26 | AB67: NR | AD67: NR | AF67: 0.51 ± 0.07% Tot FA | AG67: 0.51 | AH67: 0.85 ± 0.06% Tot FA | AI67: 0.85 | AJ67: 3.54 ± 0.46% Tot FA | AK67: 3.54 | AL67: NR | AN67: No | AO67: 10.26 | AP67: 4.9 | AQ67: 15.16 | AR67: 79.56742589 | AS67: 67.67810026 | AT67: 20.43257411 | AU67: 32.32189974
A68: [39] | B68: Raatz 2001 | C68: Low Fat | D68: US | E68: 10 | F68: M/F | G68: 4 | H68: NR | J68: 20 en% | K68: 20 | L68: 13.42 | M68: Subjects switched diets after 3-4 wk wash-out period | N68: 6.0 en% LA | O68: 6 | P68: 0.4 en% AlA | Q68: 0.4 | R68: NR1 | S68: 0.07 | T68: NR1 | U68: 0.11 | V68: No | W68: Plasma Phospholipids | X68: NR | Z68: 12.17 ± 0.40% Tot FA | AA68: 12.17 | AB68: NR | AD68: NR | AF68: 0.71 ± 0.07% Tot FA | AG68: 0.71 | AH68: 0.96 ± 0.06% Tot FA | AI68: 0.96 | AJ68: 4.53 ± 0.31% Tot FA | AK68: 4.53 | AL68: NR | AN68: No | AO68: =SUM(Y68,AA68,AC68,AE68) -> 12.17 | AP68: =SUM(AG68,AI68,AK68) -> 6.2 | AQ68: =SUM(AG68,AI68,AK68,Y68,AA68,AC68,AE68,AM68) -> 18.37 | AR68: 75.74324394 | AS68: =AO68/AQ68*100 -> 66.24931954 | AT68: =100-AR68 -> 24.25675606 | AU68: =AP68/AQ68*100 -> 33.75068046
A69: [40] | B69: Seppänen 2010 | C69: Cold-Pressed Rapeseed Oil | D69: Finland | E69: 16 | F69: M/F | G69: 6 | H69: 7400 kJ/d | I69: =7400*$B$100 -> 1768.6 | J69: 38.3 en% | K69: 38.3 | L69: 31.12 | M69: No fish | N69: 5.6 en% LA | O69: 5.6 | P69: 1.4 en% ALA | Q69: 1.4 | R69: NR1 | S69: 0.07 | T69: NR1 | U69: 0.11 | V69: No | W69: Plasma Phospholipids | X69: 3.11% Tot FA | Y69: 3.11 | Z69: 9.30% Tot FA | AA69: 9.3 | AB69: NR | AD69: NR | AF69: 1.39% Tot FA | AG69: 1.39 | AH69: 1.02% Tot FA | AI69: 1.02 | AJ69: 3.15% Tot FA | AK69: 3.15 | AL69: NR | AN69: No | AO69: 12.41 | AP69: 5.56 | AQ69: 17.97 | AR69: 68.29356951 | AS69: 69.05954368 | AT69: 31.70643049 | AU69: 30.94045632
A70: [40] | B70: Seppänen 2010 | C70: Ordinary Rapeseed Oil | D70: Finland | E70: 16 | F70: M/F | G70: 6 | H70: 7890 kJ/d | I70: =7890*$B$100 -> 1885.71 | J70: 38.6 en% | K70: 38.6 | L70: 30.02 | M70: No fish | N70: 6.5 en% LA | O70: 6.5 | P70: 1.9 en% ALA | Q70: 1.9 | R70: NR1 | S70: 0.07 | T70: NR1 | U70: 0.11 | V70: No | W70: Plasma Phospholipids | X70: 3.19% Tot FA | Y70: 3.19 | Z70: 9.41% Tot FA | AA70: 9.41 | AB70: NR | AD70: NR | AF70: 0.96% Tot FA | AG70: 0.96 | AH70: 0.99% Tot FA | AI70: 0.99 | AJ70: 3.43% Tot FA | AK70: 3.43 | AL70: NR | AN70: No | AO70: 12.6 | AP70: 5.38 | AQ70: 17.98 | AR70: 68.28438707 | AS70: 70.07786429 | AT70: 31.71561293 | AU70: 29.92213571
A71: [41] | B71: Thijssen 2005 | C71: Linoleic Acid | D71: The Netherlands | E71: 45 | F71: M/F | G71: 5 | H71: 2058 ± 406 kcal/d | I71: 2058 | J71: 38.0 ± 5.3 en% | K71: 38 | L71: 28.32 | M71: Subjects switched diets after 1 or more wk wash-out period | N71: 9.3 ± 1.3 en% LA | O71: 9.3 | P71: 0.2 ± 0.1 en% ALA | Q71: 0.2 | R71: NR1 | S71: 0.07 | T71: NR1 | U71: 0.11 | V71: No | W71: Serum Phospholipids | X71: NR | Z71: 8.6 ± 1.7% Tot FA | AA71: 8.6 | AB71: NR | AD71: NR | AF71: 0.5 ± 0.3% Tot FA | AG71: 0.5 | AH71: NR | AJ71: 3.2 ± 0.7% Tot FA | AK71: 3.2 | AL71: NR | AN71: No | AO71: 8.6 | AP71: 3.7 | AQ71: 12.3 | AR71: 79.97147929 | AS71: 69.91869919 | AT71: 20.02852071 | AU71: 30.08130081
A72: [41] | B72: Thijssen 2005 | C72: Oleic Acid | D72: The Netherlands | E72: 45 | F72: M/F | G72: 5 | H72: 2047 ± 400 kcal/d | I72: 2047 | J72: 37.7 ± 5.6 en% | K72: 37.7 | L72: 34.92 | M72: Subjects switched diets after 1 or more wk wash-out period | N72: 2.4 ± 0.3 en% LA | O72: 2.4 | P72: 0.2 ± 0.1 en% ALA | Q72: 0.2 | R72: NR1 | S72: 0.07 | T72: NR1 | U72: 0.11 | V72: No | W72: Serum Phospholipids | X72: NR | Z72: 8.7 ± 1.5% Tot FA | AA72: 8.7 | AB72: NR | AD72: NR | AF72: 0.7 ± 0.3% Tot FA | AG72: 0.7 | AH72: NR | AJ72: 3.3 ± 0.7% Tot FA | AK72: 3.3 | AL72: NR | AN72: No | AO72: 8.7 | AP72: 4 | AQ72: 12.7 | AR72: 62.2972722 | AS72: 68.50393701 | AT72: 37.7027278 | AU72: 31.49606299
A73: [41] | B73: Thijssen 2005 | C73: Stearic Acid | D73: The Netherlands | E73: 45 | F73: M/F | G73: 5 | H73: 1997 ± 348 kcal/d | I73: 1997 | J73: 38.2 ± 5.2 en% | K73: 38.2 | L73: 35.72 | M73: Subjects switched diets after 1 or more wk wash-out period | N73: 2.1 ± 0.3 en% LA | O73: 2.1 | P73: 0.2 ± 0.1 en% ALA | Q73: 0.2 | R73: NR1 | S73: 0.07 | T73: NR1 | U73: 0.11 | V73: No | W73: Serum Phospholipids | X73: NR | Z73: 8.9 ± 1.5% Tot FA | AA73: 8.9 | AB73: NR | AD73: NR | AF73: 0.8 ± 0.4% Tot FA | AG73: 0.8 | AH73: NR | AJ73: 3.4 ± 0.9% Tot FA | AK73: 3.4 | AL73: NR | AN73: No | AO73: 8.9 | AP73: 4.2 | AQ73: 13.1 | AR73: 59.79985549 | AS73: 67.9389313 | AT73: 40.20014451 | AU73: 32.0610687
A74: [42] | B74: Vega-López 2006 | C74: Canola Oil | D74: US | E74: 15 | F74: M/F | G74: 5 | H74: NR | J74: 32 en% | K74: 32 | L74: 23.12 | M74: Subjects consumed each diets in random order | N74: 6.54 en% LA | O74: 6.54 | P74: 2.16 en% LA | Q74: 2.16 | R74: NR1 | S74: 0.07 | T74: NR1 | U74: 0.11 | V74: No | W74: Serum Phospholipids | X74: NR | Z74: 8.93 ± 1.19% Tot FA | AA74: 8.93 | AB74: NR | AD74: NR | AF74: 0.94 ± 0.26% Tot FA | AG74: 0.94 | AH74: NR | AJ74: 3.38 ± 0.38% Tot FA | AK74: 3.38 | AL74: NR | AN74: No | AO74: 8.93 | AP74: 4.32 | AQ74: 13.25 | AR74: 67.59673545 | AS74: 67.39622642 | AT74: 32.40326455 | AU74: 32.60377358
A75: [42] | B75: Vega-López 2006 | C75: Palm Oil | D75: US | E75: 15 | F75: M/F | G75: 5 | H75: NR | J75: 30 en% | K75: 30 | L75: 26.35 | M75: Subjects consumed each diets in random order | N75: 3.26 en% LA | O75: 3.26 | P75: 0.21 en% ALA | Q75: 0.21 | R75: NR1 | S75: 0.07 | T75: NR1 | U75: 0.11 | V75: No | W75: Serum Phospholipids | X75: NR | Z75: 8.21 ± 1.34% Tot FA | AA75: 8.21 | AB75: NR | AD75: NR | AF75: 0.66 ± 0.25% Tot FA | AG75: 0.66 | AH75: NR | AJ75: 3.34 ± 0.61% Tot FA | AK75: 3.34 | AL75: NR | AN75: No | AO75: 8.21 | AP75: 4 | AQ75: 12.21 | AR75: 68.12332276 | AS75: 67.23996724 | AT75: 31.87667724 | AU75: 32.76003276
A76: [42] | B76: Vega-López 2006 | C76: Partially Hydrogenated Soybean Oil | D76: US | E76: 15 | F76: M/F | G76: 5 | H76: NR | J76: 30 en% | K76: 30 | L76: 22.05 | M76: Subjects consumed each diets in random order | N76: 7.22 en% LA | O76: 7.22 | P76: 0.55 en% ALA | Q76: 0.55 | R76: NR1 | S76: 0.07 | T76: NR1 | U76: 0.11 | V76: No | W76: Serum Phospholipids | X76: NR | Z76: 9.01 ± 1.44% Tot FA | AA76: 9.01 | AB76: NR | AD76: NR | AF76: 0.63 ± 0.15% Tot FA | AG76: 0.63 | AH76: NR | AJ76: 3.74 ± 0.50% Tot FA | AK76: 3.74 | AL76: NR | AN76: No | AO76: 9.01 | AP76: 4.37 | AQ76: 13.38 | AR76: 76.36744721 | AS76: 67.33931241 | AT76: 23.63255279 | AU76: 32.66068759
A77: [42] | B77: Vega-López 2006 | C77: Soybean Oil | D77: US | E77: 15 | F77: M/F | G77: 5 | H77: NR | J77: 28 en% | K77: 28 | L77: 15.41 | M77: Subjects consumed each diets in random order | N77: 10.74 en% LA | O77: 10.74 | P77: 1.67 en% ALA | Q77: 1.67 | R77: NR1 | S77: 0.07 | T77: NR1 | U77: 0.11 | V77: No | W77: Serum Phospholipids | X77: NR | Z77: 8.72 ± 1.29% Tot FA | AA77: 8.72 | AB77: NR | AD77: NR | AF77: 0.76 ± 0.20% Tot FA | AG77: 0.76 | AH77: NR | AJ77: 3.50 ± 0.47% Tot FA | AK77: 3.5 | AL77: NR | AN77: No | AO77: 8.72 | AP77: 4.26 | AQ77: 12.98 | AR77: 76.24442068 | AS77: 67.18027735 | AT77: 23.75557932 | AU77: 32.81972265
A78: [43] | B78: Astorg 2008 | C78: Men | D78: France | E78: 276 | F78: M | G78: Observational | H78: NR | J78: 36.43 ± 4.68 en% | K78: 36.43 | L78: 31.08 | N78: 4.70 ± 1.19 en% LA | O78: 4.7 | P78: 0.37 ± 0.09 en% ALA | Q78: 0.37 | R78: 0.08 ± 0.02 en% AA | S78: 0.08 | T78: 0.06 ± 0.04 en% EPA, 0.03 ± 0.01 en% DPA, 0.11 ± 0.07 en% DHA | U78: =0.06+0.03+0.11 -> 0.2 | V78: Yes | W78: Plasma Total Lipids | X78: 1.54 ± 0.32% Tot FA | Y78: 1.54 | Z78: 7.90 ± 1.58% Tot FA | AA78: 7.9 | AB78: 0.21 ± 0.07% Tot FA | AC78: 0.21 | AD78: NR | AF78: 1.36 ± 0.92% Tot FA | AG78: 1.36 | AH78: 0.54 ± 0.14% Tot FA | AI78: 0.54 | AJ78: 2.49 ± 0.81% Tot FA | AK78: 2.49 | AL78: NR | AN78: No | AO78: 9.65 | AP78: 4.39 | AQ78: 14.04 | AR78: 66.5738365 | AS78: 68.73219373 | AT78: 33.4261635 | AU78: 31.26780627
A79: [43] | B79: Astorg 2008 | C79: Women | D79: France | E79: 257 | F79: F | G79: Observational | H79: NR | J79: 38.49 ± 4.34 en% | K79: 38.49 | L79: 32.84 | N79: 4.96 ± 1.23 en% LA | O79: 4.96 | P79: 0.40 ± 0.08 en% ALA | Q79: 0.4 | R79: 0.08 ± 0.02 en% AA | S79: 0.08 | T79: 0.06 ± 0.04 en% EPA, 0.03 ± 0.01 en% DPA, 0.12 ± 0.07 en% DHA | U79: =0.06+0.03+0.12 -> 0.21 | V79: Yes | W79: Plasma Total Lipids | X79: 1.51 ± 0.34% Tot FA | Y79: 1.51 | Z79: 8.05 ± 1.39% Tot FA | AA79: 8.05 | AB79: 0.20 ± 0.07% Tot FA | AC79: 0.2 | AD79: NR | AF79: 1.29 ± 0.82% Tot FA | AG79: 1.29 | AH79: 0.54 ± 0.18% Tot FA | AI79: 0.54 | AJ79: 2.65 ± 0.84% Tot FA | AK79: 2.65 | AL79: NR | AN79: No | AO79: 9.76 | AP79: 4.48 | AQ79: 14.24 | AR79: 66.57199626 | AS79: 68.53932584 | AT79: 33.42800374 | AU79: 31.46067416
A80: [44] | B80: Bakewell 2006 | C80: Men | D80: UK | E80: 13 | F80: M | G80: Observational | H80: 2237 ± 476 kcal/d | I80: 2237 | J80: 81 ± 18 g/d | K80: =100*$B$102*81/I80 -> 32.58828789 | L80: 26.93884667 | N80: 12.3 ± 5.4 g/d LA | O80: =100*12.3*$B$102/I80 -> 4.948591864 | P80: 1.4 ± 0.6 g/d ALA | Q80: =100*$B$102*1.4/I80 -> 0.5632543585 | R80: 23 ± 16 mg/d 20:3n6, 103 ± 58 mg/d AA | S80: =100*$B$102*((103+23)/1000)/I80 -> 0.05069289227 | T80: 86 ± 60 mg/d EPA, 130 ± 112 mg/d DHA | U80: =100*(86+130)/1000*$B$102/I80 -> 0.08690210103 | V80: Yes | W80: Plasma Total Lipids | X80: 1.5 ± 0.5% Tot FA | Y80: 1.5 | Z80: 4.8 ± 0.8% Tot FA | AA80: 4.8 | AB80: NR | AD80: NR | AF80: 0.5 ± 0.1% Tot FA | AG80: 0.5 | AH80: 0.5 ± 0.1% Tot FA | AI80: 0.5 | AJ80: 1.2 ± 0.3% Tot FA | AK80: 1.2 | AL80: NR | AN80: No | AO80: 6.3 | AP80: 2.2 | AQ80: 8.5 | AR80: 70.91472081 | AS80: 74.11764706 | AT80: 29.08527919 | AU80: 25.88235294
A81: [44] | B81: Bakewell 2006 | C81: Women | D81: UK | E81: 23 | F81: F | G81: Observational | H81: 2018 ± 536 kcal/d | I81: 2018 | J81: 67 ± 25 g/d | K81: =100*$B$102*67/I81 -> 29.88107037 | L81: 24.66570862 | N81: 10.3 ± 4.8 g/d LA | O81: =100*10.3*$B$102/I81 -> 4.593657086 | P81: 1.0 ± 0.5 g/d ALA | Q81: =100*$B$102*1/I81 -> 0.4459861249 | R81: 23 ± 23 mg/d 20:3n6, 103 ± 77 mg/d AA | S81: =100*$B$102*((103+23)/1000)/I81 -> 0.05619425173 | T81: 109 ± 90 mg/d EPA, 159 ± 127 mg/d DHA | U81: =100*(109+159)/1000*$B$102/I81 -> 0.1195242815 | V81: Yes | W81: Plasma Total Lipids | X81: 1.2 ± 0.3% Tot FA | Y81: 1.2 | Z81: 5.1 ± 0.2% Tot FA | AA81: 5.1 | AB81: NR | AD81: NR | AF81: 0.7 ± 0.4% Tot FA | AG81: 0.7 | AH81: 0.4 ± 0.1% Tot FA | AI81: 0.4 | AJ81: 1.7 ± 0.7% Tot FA | AK81: 1.7 | AL81: NR | AN81: No | AO81: 6.3 | AP81: 2.8 | AQ81: 9.1 | AR81: 69.06354762 | AS81: 69.23076923 | AT81: 30.93645238 | AU81: 30.76923077
A82: [45] | B82: Friesen 2010 | C82: All (pregnant) | D82: US | E82: 105 | F82: F | G82: Observational | H82: NR | J82: 34 ± 10 en% | K82: 34 | L82: 29.40218978 | N82: 4.0 en% LA (10.8 g/d) | O82: 4 | P82: 0.5 en% ALA (1.37 g/d) | Q82: 0.5 | R82: 108 mg/d AA | S82: =((108/1000)/1.37)*0.5 -> 0.03941605839 | T82: 60 mg/d EPA, 100 mg/d DHA | U82: =(((60+100)/1000)/1.37)*0.5 -> 0.05839416058 | V82: Yes | W82: RBC Ethanolamine Phosphoglyceride | X82: 0.97 ± 0.64% Tot FA | Y82: 0.97 | Z82: 16.50 ± 1.87% Tot FA | AA82: 16.5 | AB82: 5.48 ± 1.30% Tot FA | AC82: 5.48 | AD82: 0.81 ± 0.25% Tot FA | AE82: 0.81 | AF82: 0.69 ± 0.30% Tot FA | AG82: 0.69 | AH82: 3.21 ± 0.71% Tot FA | AI82: 3.21 | AJ82: 7.47 ± 1.97% Tot FA | AK82: 7.47 | AL82: NR | AN82: No | AO82: 23.76 | AP82: 11.37 | AQ82: 35.13 | AR82: 69.50406781 | AS82: 67.63450043 | AT82: 30.49593219 | AU82: 32.36549957
A83: [46] | B83: Glew 2008 | C83: All (lactating) | D83: US | E83: 29 | F83: F | G83: Observational | H83: 2118 ± 576 kcal/d | I83: 2118 | J83: 88.7 ± 32.6 g/d | K83: =100*$B$102*88.7/I83 -> 37.69121813 | L83: 30.37070822 | N83: 15.4 ± 6.2 g/d LA | O83: =100*$B$102*15.4/I83 -> 6.543909348 | P83: 1.49 ± 0.60 g/d ALA | Q83: =100*$B$102*1.49/I83 -> 0.6331444759 | R83: 0.133 ± 0.081 g/d AA | S83: =100*$B$102*0.133/I83 -> 0.05651558074 | T83: 0.15 ± 0.033 g/d EPA, 0.0076 ± 0.009 g/d DPA, 0.047 ± 0.047 g/d DHA | U83: =100*$B$102*(0.15+0.0076+0.047)/I83 -> 0.08694050992 | V83: Yes | W83: Serum Phospholipids | X83: 2.08 ± 0.68% Tot FA | Y83: 2.08 | Z83: 6.86 ± 1.35% Tot FA | AA83: 6.86 | AB83: 0.34 ± 0.08% Tot FA | AC83: 0.34 | AD83: 0.23 ± 0.08% Tot FA | AE83: 0.23 | AF83: 0.60 ± 0.26% Tot FA | AG83: 0.6 | AH83: NR | AJ83: 1.14 ± 0.48% Tot FA | AK83: 1.14 | AL83: NR | AN83: No | AO83: 9.51 | AP83: 1.74 | AQ83: 11.25 | AR83: 74.2217928 | AS83: 84.53333333 | AT83: 25.7782072 | AU83: 15.46666667
A84: [47] | B84: Kobayashi 2001 | C84: All | D84: Japan | E84: 87 | F84: M | G84: Observational | H84: 9.9 ± 1.9 MJ/d | I84: =9.9*$B$101 -> 2366.1 | J84: 59.3 ± 10.7 g/d | K84: =100*$B$102*59.3/I84 -> 22.55610498 | L84: 16.54621529 | N84: 12.2 g/d LA | O84: =100*$B$102*12.2/I84 -> 4.640547737 | P84: 1.8 g/d ALA | Q84: =100*$B$102*1.8/I84 -> 0.6846709776 | R84: 0.2 g/d AA | S84: =100*$B$102*0.2/I84 -> 0.07607455306 | T84: 0.6 g/d EPA, 0.1 g/d DPA, 0.9 g/d DHA | U84: =100*$B$102*(0.6+0.1+0.9)/I84 -> 0.6085964245 | V84: Yes | W84: Serum Phospholipids | X84: NR | Z84: 6.4% Tot FA | AA84: 6.4 | AB84: NR | AD84: NR | AF84: 3.7% Tot FA | AG84: 3.7 | AH84: 1.2% Tot FA | AI84: 1.2 | AJ84: 7.3% Tot FA | AK84: 7.3 | AL84: NR | AN84: No | AO84: 6.4 | AP84: 12.2 | AQ84: 18.6 | AR84: 47.24363676 | AS84: 34.40860215 | AT84: 52.75636324 | AU84: 65.59139785
A85: [48] | B85: Kroger 2011 | C85: All | D85: Germany | E85: 2114 | F85: M/F | G85: Observational | H85: NR | J85: 39.3 ± 5.6 en% | K85: 39.3 | L85: 33.23819858 | N85: 14.9% Tot FA LA | O85: =(14.9/100)*$K$25 -> 5.232654028 | P85: 1.9% Tot FA ALA | Q85: =(1.9/100)*$K$25 -> 0.6672511848 | R85: 0.19% Tot FA AA, 0.001% Tot FA 22:4n6 | S85: =((0.19+0.001)/100)*$K$25 -> 0.06707630332 | T85: 0.08% Tot FA EPA, 0.04% Tot FA DPA, 0.15%Tot FA DHA | U85: =((0.08+0.04+0.15)/100)*$K$25 -> 0.09481990521 | V85: Yes | W85: RBC Phosholipids | X85: 1.5% Tot FA | Y85: 1.5 | Z85: 13.1% Tot FA | AA85: 13.1 | AB85: 2.7% Tot FA | AC85: 2.7 | AD85: NR | AF85: 0.75% Tot FA | AG85: 0.75 | AH85: 2.3% Tot FA | AI85: 2.3 | AJ85: 4.7% Tot FA | AK85: 4.7 | AL85: NR | AN85: No | AO85: 17.3 | AP85: 7.75 | AQ85: 25.05 | AR85: 71.88658049 | AS85: 69.06187625 | AT85: 28.11341951 | AU85: 30.93812375
A86: [49] | B86: Kuriki 2002 | C86: Elderly | D86: Japan | E86: 28 | F86: F | G86: Observational | H86: 7.47 ± 0.67 MJ/d | I86: =7.47*$B$101 -> 1785.33 | J86: 26.7 ± 3.6 en% | K86: 26.7 | L86: 20.76 | N86: 4.76 ± 1.47 en% LA | O86: 4.76 | P86: 0.69 ± 0.21 en% ALA | Q86: 0.69 | R86: 0.07 ± 0.02 en% AA | S86: 0.07 | T86: 0.15 ± 0.07 en% EPA, 0.27 ± 0.09 en% DHA | U86: =0.15+0.27 -> 0.42 | V86: Yes | W86: Plasma Total Lipids | X86: NR | Z86: 6.35 ± 0.84% Tot FA | AA86: 6.35 | AB86: NR | AD86: NR | AF86: 2.88 ± 1.01% Tot FA | AG86: 2.88 | AH86: NR | AJ86: 5.55 ± 0.78% Tot FA | AK86: 5.55 | AL86: NR | AN86: No | AO86: 6.35 | AP86: 8.43 | AQ86: 14.78 | AR86: 53.66103487 | AS86: 42.96346414 | AT86: 46.33896513 | AU86: 57.03653586
A87: [49] | B87: Kuriki 2002 | C87: Middle-aged | D87: Japan | E87: 24 | F87: F | G87: Observational | H87: 8.00 ± 1.06 MJ/d | I87: =8*$B$101 -> 1912 | J87: 29.7 ± 3.9 en% | K87: 29.7 | L87: 23.04 | N87: 5.35 ± 1.21 en% LA | O87: 5.35 | P87: 0.79 ± 0.18 en% ALA | Q87: 0.79 | R87: 0.07 ± 0.02 en% AA | S87: 0.07 | T87: 0.17 ± 0.09 en% EPA, 0.28 ± 0.12 en% DHA | U87: =0.17+0.28 -> 0.45 | V87: Yes | W87: Plasma Total Lipids | X87: NR | Z87: 6.59 ± 1.29% Tot FA | AA87: 6.59 | AB87: NR | AD87: NR | AF87: 2.61 ± 1.15% Tot FA | AG87: 2.61 | AH87: NR | AJ87: 5.42 ± 1.10% Tot FA | AK87: 5.42 | AL87: NR | AN87: No | AO87: 6.59 | AP87: 8.03 | AQ87: 14.62 | AR87: 54.35147794 | AS87: 45.0752394 | AT87: 45.64852206 | AU87: 54.9247606
A88: [49] | B88: Kuriki 2002 | C88: Young | D88: Japan | E88: 27 | F88: F | G88: Observational | H88: 7.52 ± 1.31 MJ/d | I88: =7.52*$B$101 -> 1797.28 | J88: 29.4 ± 3.3 en% | K88: 29.4 | L88: 23.21 | N88: 4.97 ± 0.85 en% LA | O88: 4.97 | P88: 0.77 ± 0.14 en% ALA | Q88: 0.77 | R88: 0.07 ± 0.02 en% AA | S88: 0.07 | T88: 0.13 ± 0.08 en% EPA, 0.25 ± 0.12 en% DHA | U88: =0.13+0.25 -> 0.38 | V88: Yes | W88: Plasma Total Lipids | X88: NR | Z88: 7.48 ± 1.10% Tot FA | AA88: 7.48 | AB88: NR | AD88: NR | AF88: 2.32 ± 0.88% Tot FA | AG88: 2.32 | AH88: NR | AJ88: 5.30 ± 1.01% Tot FA | AK88: 5.3 | AL88: NR | AN88: No | AO88: 7.48 | AP88: 7.62 | AQ88: 15.1 | AR88: 55.78176312 | AS88: 49.53642384 | AT88: 44.21823688 | AU88: 50.46357616
A89: [50] | B89: Kuriki 2003 | C89: Men | D89: Japan | E89: 15 | F89: M | G89: Observational | H89: 8.73 ± 1.42 MJ/d | I89: =8.73*$B$101 -> 2086.47 | J89: 26.0 ± 2.6 en% | K89: 26 | L89: 19.04102144 | N89: 12869 ± 2833 mg/d LA | O89: =100*$B$102*(12869/1000)/I89 -> 5.551050339 | P89: 2010 ± 587 mg/d ALA | Q89: =100*$B$102*(2010/1000)/I89 -> 0.8670146228 | R89: 162 ± 44 mg/d AA | S89: =100*$B$102*(162/1000)/I89 -> 0.06987879049 | T89: 1092 ± 560 mg/d n-3 HUFA | U89: =100*$B$102*(1092/1000)/I89 -> 0.47103481 | V89: Yes | W89: Plasma Total Lipids | X89: NR | Z89: 0.59 ± 0.12 mmol/L | AA89: =0.59/10.4*100 -> 5.673076923 | AB89: NR | AD89: NR | AF89: 0.20 ± 0.11 mmol/L | AG89: =0.2/10.4*100 -> 1.923076923 | AH89: 0.06 ± 0.02 mmol/L | AI89: =0.06/10.4*100 -> 0.5769230769 | AJ89: 0.42 ± 0.11 mmol/L | AK89: =0.42/10.4*100 -> 4.038461538 | AL89: NR | AN89: No | AO89: 5.673076923 | AP89: 6.538461538 | AQ89: 12.21153846 | AR89: 54.18060605 | AS89: 46.45669291 | AT89: 45.81939395 | AU89: 53.54330709
A90: [50] | B90: Kuriki 2003 | C90: Women | D90: Japan | E90: 79 | F90: F | G90: Observational | H90: 7.66 ± 1.06 MJ/d | I90: =7.66*$B$101 -> 1830.74 | J90: 28.5 ± 3.8 en% | K90: 28.5 | L90: 21.89234408 | N90: 10734 ± 2859 mg/d LA | O90: =100*$B$102*(10734/1000)/I90 -> 5.276882572 | P90: 1589 ± 447 mg/d ALA | Q90: =100*$B$102*(1589/1000)/I90 -> 0.7811595311 | R90: 147 ± 38 mg/d AA | S90: =100*$B$102*(147/1000)/I90 -> 0.07226585971 | T90: 971 ± 459 mg/d n-3 HUFA | U90: =100*$B$102*(971/1000)/I90 -> 0.4773479577 | V90: Yes | W90: Plasma Total Lipids | X90: NR | Z90: 0.66 ± 0.13 mmol/L | AA90: =0.66/10.71*100 -> 6.162464986 | AB90: NR | AD90: NR | AF90: 0.26 ± 0.11 mmol/L | AG90: =0.26/10.71*100 -> 2.427637722 | AH90: 0.06 ± 0.02 mmol/L | AI90: =0.06/10.71*100 -> 0.5602240896 | AJ90: 0.49 ± 0.13 mmol/L | AK90: =0.49/10.71*100 -> 4.575163399 | AL90: NR | AN90: No | AO90: 6.162464986 | AP90: 7.56302521 | AQ90: 13.7254902 | AR90: 53.37719693 | AS90: 44.89795918 | AT90: 46.62280307 | AU90: 55.10204082
A91: [51] | B91: Thiébaut 2009 | C91: All | D91: France | E91: 1114 | F91: F | G91: Observational | H91: 8.83 ± MJ/d | I91: =8.83*$B$101 -> 2110.37 | J91: 90.8 ± 28.8 g/d | K91: =100*$B$102*90.8/I91 -> 38.72306752 | L91: 31.59027848 | N91: 16.3 ± 5.62% Tot FA LA | O91: =((90.8*$B$102)/I91)*16.3 -> 6.311860006 | P91: 1.24 ± 0.29% Tot FA ALA | Q91: =((90.8*$B$102)/I91)*1.24 -> 0.4801660372 | R91: 0.25 ± 0.09% Tot FA AA | S91: =((90.8*$B$102)/I91)*0.25 -> 0.0968076688 | T91: 0.19 ± 0.14% Tot FA DHA, 0.08 ± 0.04% Tot FA DPA, 0.36 ± 0.25% Tot FA DHA | U91: =((90.8*$B$102)/$I91)*(0.19+0.08+0.36) -> 0.2439553254 | V91: Yes | W91: Serum Phospholipids | X91: 3.29 ± 0.79% Tot FA | Y91: 3.29 | Z91: 11.9 ± 1.86% Tot FA | AA91: 11.9 | AB91: 0.36 ± 0.09% Tot FA | AC91: 0.36 | AD91: NR | AF91: 1.50 ± 0.89% Tot FA | AG91: 1.5 | AH91: 1.18 ± 0.22% Tot FA | AI91: 1.18 | AJ91: 5.88 ± 1.39% Tot FA | AK91: 5.88 | AL91: NR | AN91: No | AO91: 15.55 | AP91: 8.56 | AQ91: 24.11 | AR91: =100/(1+$B$110*(1+$U91/$B$111)/$S91)+100/(1+$B$105*(1+$Q91/$B$106+$U91/$B$109+$L91/$B$107+$O91/$B$108)/$O91) -> 70.0085123 | AS91: 64.49605973 | AT91: 29.9914877 | AU91: 35.50394027
A92: [52] | B92: Yamada 2000 | C92: Farming Village | D92: Japan | E92: 202 | F92: M/F | G92: Observational | H92: 2161 ± 47 kcal/d | I92: 2161 | J92: 21.5 ± 0.6 en% | K92: 21.5 | L92: 17.8825081 | N92: 6094 ± 263 mg/d LA | O92: =100*$B$102*(6094/1000)/I92 -> 2.537991671 | P92: 1234 ± 73 mg/d ALA | Q92: =100*$B$102*(1234/1000)/I92 -> 0.5139287367 | R92: 149 ± 6 mg/d AA | S92: =100*$B$102*(149/1000)/I92 -> 0.06205460435 | T92: 383 ± 18 mg/d EPA, 115 ± 6 mg/d DPA, 711 ± 33 mg/d DHA | U92: =100*$B$102*((383+115+711)/1000)/I92 -> 0.5035168903 | V92: Yes | W92: Serum Total Lipids | X92: NR | Z92: 5.3 ± 0.1% Tot FA | AA92: 5.3 | AB92: NR | AD92: NR | AF92: 3.2 ± 0.1% Tot FA | AG92: 3.2 | AH92: 1.20 ± 0.03% Tot FA | AI92: 1.2 | AJ92: 7.7 ± 0.2% Tot FA | AK92: 7.7 | AL92: NR | AN92: No | AO92: 5.3 | AP92: 12.1 | AQ92: 17.4 | AR92: 37.89822479 | AS92: 30.45977011 | AT92: 62.10177521 | AU92: 69.54022989
A93: [52] | B93: Yamada 2000 | C93: Fishing Village | D93: Japan | E93: 229 | F93: M/F | G93: Observational | H93: 2060 ± 48 kcal/d | I93: 2060 | J93: 20.2 ± 0.5 en% | K93: 20.2 | L93: 16.74679612 | N93: 4803 ± 193 mg/d LA | O93: =100*$B$102*(4803/1000)/I93 -> 2.098398058 | P93: 963 ± 53 mg/d ALA | Q93: =100*$B$102*(963/1000)/I93 -> 0.4207281553 | R93: 171 ± 7 mg/d AA | S93: =100*$B$102*(171/1000)/I93 -> 0.07470873786 | T93: 634 ± 32 mg/d EPA, 192 ± 10 mg/d DPA, 1141 ± 57 mg/d DHA | U93: =100*$B$102*((634+192+1141)/1000)/I93 -> 0.859368932 | V93: Yes | W93: Serum Total Lipids | X93: NR | Z93: 5.9 ± 0.1% Tot FA | AA93: 5.9 | AB93: NR | AD93: NR | AF93: 3.8 ± 0.1% Tot FA | AG93: 3.8 | AH93: 1.34 ± 0.03% Tot FA | AI93: 1.34 | AJ93: 8.4 ± 0.2% Tot FA | AK93: 8.4 | AL93: NR | AN93: No | AO93: 5.9 | AP93: 13.54 | AQ93: 19.44 | AR93: 27.21164474 | AS93: 30.34979424 | AT93: 72.78835526 | AU93: 69.65020576
A94: [53] | B94: Fuhrman 2006 | C94: Pre-menopausal | D94: Italy | E94: 93 | F94: F | G94: Observational | H94: 1799 ± 475 kcal/d | I94: 1799 | J94: 32.5 ± 5.1 en% | K94: 32.5 | L94: 28.73300723 | N94: 6.2 ± 2.2 g/d LA | O94: =100*6.2*$B$102/I94 -> 3.10172318 | P94: 0.97 ± 0.28 g/d ALA | Q94: =100*$B$102*0.97/I94 -> 0.4852695942 | R94: NR1 | S94: 0.07 | T94: NR1 | U94: 0.11 | V94: No | W94: RBC Phosholipids | X94: 1.93 ± 0.36% Tot FA | Y94: 1.93 | Z94: 17.17 ± 1.11% Tot FA | AA94: 17.17 | AB94: 3.05 ± 0.67% Tot FA | AC94: 3.05 | AD94: 0.76 ± 0.13% Tot FA | AE94: 0.76 | AF94: 0.62 ± 0.23% Tot FA | AG94: 0.62 | AH94: 2.11 ± 0.29% Tot FA | AI94: 2.11 | AJ94: 6.09 ± 1.08% Tot FA | AK94: 6.09 | AL94: NR | AN94: No | AO94: 22.91 | AP94: 8.82 | AQ94: 31.73 | AR94: 64.81905851 | AS94: 72.2029625 | AT94: 35.18094149 | AU94: 27.7970375
A95: [53] | B95: Fuhrman 2006 | C95: Post-menopausal | D95: Italy | E95: 104 | F95: F | G95: Observational | H95: 1662 ± 516 kcal/d | I95: 1662 | J95: 32.3 ± 6.2 en% | K95: 32.3 | L95: 28.12902527 | N95: 6.4 ± 3.5 g/d LA | O95: =100*6.4*$B$102/I95 -> 3.465703971 | P95: 0.97 ± 0.4 g/d ALA | Q95: =100*$B$102*0.97/I95 -> 0.5252707581 | R95: NR1 | S95: 0.07 | T95: NR1 | U95: 0.11 | V95: No | W95: RBC Phosholipids | X95: 2.11 ± 0.40% Tot FA | Y95: 2.11 | Z95: 17.21 ± 1.20% Tot FA | AA95: 17.21 | AB95: 2.83 ± 0.55% Tot FA | AC95: 2.83 | AD95: 0.62 ± 0.23% Tot FA | AE95: 0.62 | AF95: 0.61 ± 0.19% Tot FA | AG95: 0.61 | AH95: 2.09 ± 0.28% Tot FA | AI95: 2.09 | AJ95: 5.84 ± 1.22% Tot FA | AK95: 5.84 | AL95: NR | AN95: No | AO95: 22.77 | AP95: 8.54 | AQ95: 31.31 | AR95: 66.37861446 | AS95: 72.72436921 | AT95: 33.62138554 | AU95: 27.27563079
A96: AA: arachidonic acid; ALA: alpha-linoleic acid; DPA: docosapentaenoic acid; DHA: docosahexaenoic acid; en%: percentage of food energy; EPA: eicosapentaenoic acid; HUFA: highly unsaturated fatty acids; LA: linoleic acid; n-3: omega-3; n-6: omega-6; NR: not reported; % Tot FA: percentage of total fatty acids
A97: 1Used estimates for typical Western diets: n-6 HUFA = 0.07 en% and n-3 HUFA = 0.11 en% [4].
A99: Conversions
A100: kcal/kJ | B100: 0.239
A101: kcal/MJ | B101: 239
A102: kcal/g of fat | B102: 9
A104: Lands Equation Constants
A105: PC6= | B105: 0.0441
A106: PC3= | B106: 0.0555
A107: C0= | B107: 5
A108: Ks= | B108: 0.175
A109: HI3= | B109: 0.005
A110: HC6= | B110: 0.7
A111: HC3= | B111: 3
